Body Name,Body,Service Division Label,Service Division Code,Organisational Unit,Expenditure Category,Expenditure Code,CIPFA detailed expediture type,CIPFA detailed expediture code,Narrative,Date,Transaction number,Net Amount,Capital and Revenue,Supplier Name,Supplier ID
Chorley Borough Council,http://statistics.data.gov.uk/id/local-authority/30UE,Central Support Services,1009,CUST - Customer & Digital,Telephones - Other,40085,Communication and Computing,5028,Adept Telecom - September 23,11/10/2023,0185663,"2,034.92",Revenue,Adept Telecom PLC,77452
Chorley Borough Council,http://statistics.data.gov.uk/id/local-authority/30UE,Control Accounts,Control,GOVN - Policy & Governance,Manual Control Account,00001,Balance Sheet,Balance,,04/10/2023,0184912,"2,000.00",Revenue,Adlington Carnival Events,89357
Chorley Borough Council,http://statistics.data.gov.uk/id/local-authority/30UE,Unapportionable Central OHeads,1009,GROW - Commercial Services,Planned Maintenance,20006,Repairs Maintenance & Alts,5005,Carry out Asbestos Management Survey and Report as per quotation of 12th April 2023,18/10/2023,0181689,"1,237.21",Revenue,Airborne Environmental Consultants Ltd,16521
Chorley Borough Council,http://statistics.data.gov.uk/id/local-authority/30UE,Business Support,1095,PLAN - Planning & Development,Grants To Other Organisations,40127,Grants and Subscriptions,5031,ADDRESS REDACTED,18/10/2023,0185313,"3,600.00",Revenue,Akbar Ahmadi,89574
Chorley Borough Council,http://statistics.data.gov.uk/id/local-authority/30UE,Central Support Services,1009,CUST - Customer & Digital,Computer Software-Additional,40102,Communication and Computing,5028,"Amazon AWS web services - 718576685325 Cloud charges, , September 2023",18/10/2023,0185775,"4,100.44",Revenue,Amazon Web Services EMEA SARL,80604
Chorley Borough Council,http://statistics.data.gov.uk/id/local-authority/30UE,Homelessness,1075,EARL - Communities,Grants - Tenant Participation,40142,Grants and Subscriptions,5031,,18/10/2023,0185903,500.00,Revenue,Anne Barnish,85651
Chorley Borough Council,http://statistics.data.gov.uk/id/local-authority/30UE,Homelessness,1075,EARL - Communities,Grants - Tenant Participation,40142,Grants and Subscriptions,5031,,18/10/2023,0185902,500.00,Revenue,Anthony James Houlihan,87009
Chorley Borough Council,http://statistics.data.gov.uk/id/local-authority/30UE,Central Support Services,1009,GOVN - Policy & Governance,Car Leasing Payment,14100,Direct Employee Expenses,5001,VIN REDACTED: NAME REDACTED - 12 Aug 23 to 11 Aug 24,11/10/2023,0185690,"2,870.88",Revenue,Arnold Clark Finance Ltd,20685
Chorley Borough Council,http://statistics.data.gov.uk/id/local-authority/30UE,Unapportionable Central OHeads,1009,GOVN - Policy & Governance,Car Leasing Payment,14100,Direct Employee Expenses,5001,VIN REDACTED: NAME REDACTED - 26 Oct 22 to 25 Oct 23,11/10/2023,0185708,"3,569.11",Revenue,Arval UK Ltd,18240
Chorley Borough Council,http://statistics.data.gov.uk/id/local-authority/30UE,Tourism,1039,CUST - Customer & Digital,Tools & Equipment - Hire,40004,"Equipment, Furniture & Materia",5023,Supply 15 plywood sheets ( 8`x4`x3/4),11/10/2023,0185310,720.00,Revenue,Asc Timber Supplies Ltd,16240
Chorley Borough Council,http://statistics.data.gov.uk/id/local-authority/30UE,Central Support Services,1009,EARL - Communities,Children's Activities,40188,Miscellaneous Expenses,5034,Delivery of Chorley Summer HAF Programme 2023 as per grant agreement,18/10/2023,0184512,"2,048.00",Revenue,A-Star Sports,62177
Chorley Borough Council,http://statistics.data.gov.uk/id/local-authority/30UE,Central Support Services,1009,EARL - Communities,Children's Activities,40188,Miscellaneous Expenses,5034,Provision of Chorley HAF programme summer 23 as per grant agreement,18/10/2023,0185848,"2,304.00",Revenue,Astley Park School,89303
Chorley Borough Council,http://statistics.data.gov.uk/id/local-authority/30UE,Service Management & Support,1009,CUST - Customer & Digital,Vehicles and Plant Maintenance,30045,Direct Transport Costs,5016,"As per Invoice AU3701, VIN REDACTED, 3 piece clutch kit, Slave Cylinder, Clutch Fly wheel",11/10/2023,0185014,"1,400.85",Revenue,Autofit,78140
Chorley Borough Council,http://statistics.data.gov.uk/id/local-authority/30UE,Other Short Term Creditors,,GOVN - Policy & Governance,Amount Paid,00010,Balance Sheet,Balance,AVC Wise Scheme - annual purchase order (monthly spend approximately 8872,18/10/2023,0185248,508.89,Revenue,AVCWise,89242
Chorley Borough Council,http://statistics.data.gov.uk/id/local-authority/30UE,Service Management & Support,1009,CUST - Customer & Digital,Hire Of Vehicles and Plant,30028,Contrct Hire & Operating Lease,5018,hire of a John Deere 1580 out front mower for 32weeks @ 200 per week. Starting 27th March 2023,11/10/2023,0184675,800.00,Revenue,Balmers Garden Machinery,17075
Chorley Borough Council,http://statistics.data.gov.uk/id/local-authority/30UE,Control Accounts,Control,GOVN - Policy & Governance,General Balances,00100,Balance Sheet,Balance,28-Jul,09/10/2023,0183968,"11,818.46",Revenue,Barclaycard Commercial,59848
Chorley Borough Council,http://statistics.data.gov.uk/id/local-authority/30UE,Control Accounts,Control,GOVN - Policy & Governance,General Balances,00100,Balance Sheet,Balance,"Barclaycard, Aug 23",09/10/2023,0185185,"7,911.74",Revenue,Barclaycard Commercial,59848
Chorley Borough Council,http://statistics.data.gov.uk/id/local-authority/30UE,Corporate Management,1008,GOVN - Policy & Governance,Bank Charges,40151,Miscellaneous Expenses,5034,31-Jul-23,09/10/2023,0183748,"1,888.30",Revenue,Barclaycard Merchant Services,61601
Chorley Borough Council,http://statistics.data.gov.uk/id/local-authority/30UE,Corporate Management,1008,GOVN - Policy & Governance,Bank Charges,40151,Miscellaneous Expenses,5034,31-Jul-23,09/10/2023,0183750,"3,246.61",Revenue,Barclaycard Merchant Services,61601
Chorley Borough Council,http://statistics.data.gov.uk/id/local-authority/30UE,Corporate Management,1008,GOVN - Policy & Governance,Bank Charges,40151,Miscellaneous Expenses,5034,"1648535, Aug 23",09/10/2023,0185188,"1,707.83",Revenue,Barclaycard Merchant Services,61601
Chorley Borough Council,http://statistics.data.gov.uk/id/local-authority/30UE,Corporate Management,1008,GOVN - Policy & Governance,Bank Charges,40151,Miscellaneous Expenses,5034,"1648537, Aug 23",09/10/2023,0185190,"2,838.15",Revenue,Barclaycard Merchant Services,61601
Chorley Borough Council,http://statistics.data.gov.uk/id/local-authority/30UE,Tourism,1039,GOVN - Policy & Governance,Misc Expenses,40200,Miscellaneous Expenses,5034,Flower Show 2023 compensation due to closures,18/10/2023,0185456,650.00,Revenue,Barrica Wines Limited,81102
Chorley Borough Council,http://statistics.data.gov.uk/id/local-authority/30UE,Economic Development,1096,GROW - Commercial Services,Electricity,20013,Energy Costs,5006,"BES1052802E, 15 Aug 23 - 15 Sep 23",25/10/2023,0187454,809.80,Revenue,BES Commercial Electricity Ltd,76115
Chorley Borough Council,http://statistics.data.gov.uk/id/local-authority/30UE,Economic Development,1096,GROW - Commercial Services,Electricity,20013,Energy Costs,5006,"BES1052802E, 15 Jul 23 - 15 Aug 23",25/10/2023,0187455,"1,234.18",Revenue,BES Commercial Electricity Ltd,76115
Chorley Borough Council,http://statistics.data.gov.uk/id/local-authority/30UE,Economic Development,1096,GROW - Commercial Services,Electricity,20013,Energy Costs,5006,"BES1052802E, 15 Sep 23 - 15 Oct 23",25/10/2023,0187456,857.67,Revenue,BES Commercial Electricity Ltd,76115
Chorley Borough Council,http://statistics.data.gov.uk/id/local-authority/30UE,Homelessness,1075,EARL - Communities,Grants - Tenant Participation,40142,Grants and Subscriptions,5031,,18/10/2023,0185900,500.00,Revenue,Beverley Elliott,86921
Chorley Borough Council,http://statistics.data.gov.uk/id/local-authority/30UE,Central Support Services,1009,EARL - Communities,Misc Expenses,40200,Miscellaneous Expenses,5034,Neighbourhood Working,11/10/2023,0185152,592.68,Revenue,Bretherton Parish Council,17108
Chorley Borough Council,http://statistics.data.gov.uk/id/local-authority/30UE,Recognised Cap Grants & Conts,,PLAN - Planning & Development,Contributions Parish Councils,40144,Grants and Subscriptions,5031,CIL 1st April - 30th Sept,18/10/2023,0185876,"4,940.47",Revenue,Bretherton Parish Council,17108
Chorley Borough Council,http://statistics.data.gov.uk/id/local-authority/30UE,Recognised Cap Grants & Conts,,PLAN - Planning & Development,Contributions Parish Councils,40144,Grants and Subscriptions,5031,CIL 1st April - 30th Sept,18/10/2023,0185877,"2,327.86",Revenue,Brindle Parish Council,17023
Chorley Borough Council,http://statistics.data.gov.uk/id/local-authority/30UE,Economic Development,1096,GROW - Commercial Services,Electricity,20013,Energy Costs,5006,"603153815, 29 Jul 23 - 08 Sep 23",18/10/2023,0185070,"4,701.51",Revenue,British Gas Business,22242
Chorley Borough Council,http://statistics.data.gov.uk/id/local-authority/30UE,Economic Development,1096,GROW - Commercial Services,Electricity,20013,Energy Costs,5006,"603153815, 09 Sep 23 - 20 Sep 23",18/10/2023,0185086,"1,871.34",Revenue,British Gas Business,22242
Chorley Borough Council,http://statistics.data.gov.uk/id/local-authority/30UE,Business Support,1095,GROW - Commercial Services,Gas,20014,Energy Costs,5006,"603695433, 27 Aug 23 - 21 Sep 23",18/10/2023,0185364,"3,260.67",Revenue,British Gas Business,22242
Chorley Borough Council,http://statistics.data.gov.uk/id/local-authority/30UE,Business Support,1095,GROW - Commercial Services,Electricity,20013,Energy Costs,5006,ADDRESS REDACTED,18/10/2023,0185738,801.39,Revenue,British Gas Business,22242
Chorley Borough Council,http://statistics.data.gov.uk/id/local-authority/30UE,Economic Development,1096,GROW - Commercial Services,Electricity,20013,Energy Costs,5006,"603153815, 21 Sep 23 - 08 Oct 23",25/10/2023,0187459,"2,055.14",Revenue,British Gas Business,22242
Chorley Borough Council,http://statistics.data.gov.uk/id/local-authority/30UE,Capital,Capital,GROW - Commercial Services,Other Capital Related Fees,03024,Capital Expenditure,Capital,"ADDRESS REDACTED, , Kitchen , , Remove Boiler, pipes, and radiators , Carefully remove a section of the kitchen, Remove plaster t",11/10/2023,0184964,"22,487.89",Capital,Bryan Lee Building Contractors Ltd,78160
Chorley Borough Council,http://statistics.data.gov.uk/id/local-authority/30UE,Business Support,1095,GROW - Commercial Services,General Repairs - Reactive,20004,Repairs Maintenance & Alts,5005,Primrose Gardens Reactive General Building Repair Works,11/10/2023,0184980,552.49,Revenue,Bryan Lee Building Contractors Ltd,78160
Chorley Borough Council,http://statistics.data.gov.uk/id/local-authority/30UE,Business Support,1095,GROW - Commercial Services,General Repairs - Reactive,20004,Repairs Maintenance & Alts,5005,Primrose Gardens Reactive General Building Repair Works,11/10/2023,0185015,563.76,Revenue,Bryan Lee Building Contractors Ltd,78160
Chorley Borough Council,http://statistics.data.gov.uk/id/local-authority/30UE,Unapportionable Central OHeads,1009,GROW - Commercial Services,General Repairs - Reactive,20004,Repairs Maintenance & Alts,5005,Cotswold House Reactive General Building Repair Works,18/10/2023,0185039,"3,075.00",Revenue,Bryan Lee Building Contractors Ltd,78160
Chorley Borough Council,http://statistics.data.gov.uk/id/local-authority/30UE,Unapportionable Central OHeads,1009,GROW - Commercial Services,General Repairs - Reactive,20004,Repairs Maintenance & Alts,5005,CBC Housing Reactive General Building Repair Works,18/10/2023,0185047,631.28,Revenue,Bryan Lee Building Contractors Ltd,78160
Chorley Borough Council,http://statistics.data.gov.uk/id/local-authority/30UE,Unapportionable Central OHeads,1009,GROW - Commercial Services,General Repairs - Reactive,20004,Repairs Maintenance & Alts,5005,CBC Community Centres Reactive General Building Repair Works,18/10/2023,0185049,746.66,Revenue,Bryan Lee Building Contractors Ltd,78160
Chorley Borough Council,http://statistics.data.gov.uk/id/local-authority/30UE,Unapportionable Central OHeads,1009,GROW - Commercial Services,General Repairs - Reactive,20004,Repairs Maintenance & Alts,5005,Astley Hall & Buildings Reactive General Building Repair Works,25/10/2023,0185142,824.87,Revenue,Bryan Lee Building Contractors Ltd,78160
Chorley Borough Council,http://statistics.data.gov.uk/id/local-authority/30UE,Unapportionable Central OHeads,1009,GROW - Commercial Services,General Repairs - Reactive,20004,Repairs Maintenance & Alts,5005,Astley Hall & Buildings Reactive General Building Repair Works,18/10/2023,0185143,551.96,Revenue,Bryan Lee Building Contractors Ltd,78160
Chorley Borough Council,http://statistics.data.gov.uk/id/local-authority/30UE,Unapportionable Central OHeads,1009,GROW - Commercial Services,General Repairs - Reactive,20004,Repairs Maintenance & Alts,5005,Astley Hall & Buildings Reactive General Building Repair Works,25/10/2023,0185262,"1,350.00",Revenue,Bryan Lee Building Contractors Ltd,78160
Chorley Borough Council,http://statistics.data.gov.uk/id/local-authority/30UE,Unapportionable Central OHeads,1009,GROW - Commercial Services,General Repairs - Reactive,20004,Repairs Maintenance & Alts,5005,Union Street Reactive General Building Repair Works,11/10/2023,0185264,835.42,Revenue,Bryan Lee Building Contractors Ltd,78160
Chorley Borough Council,http://statistics.data.gov.uk/id/local-authority/30UE,Unapportionable Central OHeads,1009,GROW - Commercial Services,General Repairs - Reactive,20004,Repairs Maintenance & Alts,5005,Astley Hall & Buildings Reactive General Building Repair Works,11/10/2023,0185633,"2,056.11",Revenue,Bryan Lee Building Contractors Ltd,78160
Chorley Borough Council,http://statistics.data.gov.uk/id/local-authority/30UE,Unapportionable Central OHeads,1009,GROW - Commercial Services,General Repairs - Reactive,20004,Repairs Maintenance & Alts,5005,CBC Community Centres Reactive General Building Repair Works,11/10/2023,0185634,627.68,Revenue,Bryan Lee Building Contractors Ltd,78160
Chorley Borough Council,http://statistics.data.gov.uk/id/local-authority/30UE,Unapportionable Central OHeads,1009,CUST - Customer & Digital,Professional Fees,14011,Direct Employee Expenses,5001,For Revenues Processing work w/c 29.08.2023 to w/c 11.09.23 (inclusive),18/10/2023,0185934,"1,599.00",Revenue,Business Smart Solutions Ltd,88577
Chorley Borough Council,http://statistics.data.gov.uk/id/local-authority/30UE,Unapportionable Central OHeads,1009,CUST - Customer & Digital,Agency Staff,13000,Direct Employee Expenses,5001,Benefits processing work w/e 18.09.2023 to 08.10.2023,18/10/2023,0185975,"1,059.50",Revenue,Business Smart Solutions Ltd,88577
Chorley Borough Council,http://statistics.data.gov.uk/id/local-authority/30UE,Homelessness,1075,EARL - Communities,Furniture - Purchase,40012,"Equipment, Furniture & Materia",5023,"To the furnishing of ADDRESS REDACTED, 2029.70 , Chorley(See attached for, breakdown)Various new goods, Various reuse items 605.00 , D",25/10/2023,0184775,"2,259.70",Revenue,Calico Enterprise,73338
Chorley Borough Council,http://statistics.data.gov.uk/id/local-authority/30UE,Homelessness,1075,EARL - Communities,Furniture - Purchase,40012,"Equipment, Furniture & Materia",5023,,25/10/2023,0184775,605.00,Revenue,Calico Enterprise,73338
Chorley Borough Council,http://statistics.data.gov.uk/id/local-authority/30UE,Central Support Services,1009,CUST - Customer & Digital,Misc Expenses,40200,Miscellaneous Expenses,5034,"1118147, 01 Jul 23 - 30 Sep 23",25/10/2023,0186104,757.20,Revenue,Canon (UK) Ltd,17492
Chorley Borough Council,http://statistics.data.gov.uk/id/local-authority/30UE,Economic Development,1096,GOVN - Policy & Governance,Car Leasing Payment,14100,Direct Employee Expenses,5001,VIN REDACTED: NAME REDACTED - 1 Sep 23 to 31 Aug 24,11/10/2023,0184515,"3,457.68",Revenue,Car Hire (day of Swansea) Ltd t/a Days Fleet,82001
Chorley Borough Council,http://statistics.data.gov.uk/id/local-authority/30UE,Central Support Services,1009,CUST - Customer & Digital,CCTV Camera Maintenance,40007,"Equipment, Furniture & Materia",5023,"We will supply and install the following equipment and set it to work:, 1 x Redvision RVX-IP30 power supply., 1 x Redvision RVX-I",25/10/2023,0185997,"11,306.59",Revenue,CCTV Services Limited,71330
Chorley Borough Council,http://statistics.data.gov.uk/id/local-authority/30UE,Recognised Cap Grants & Conts,,PLAN - Planning & Development,Contributions Parish Councils,40144,Grants and Subscriptions,5031,CIL 1st April - 30th Sept,18/10/2023,0185875,"5,603.48",Revenue,Charnock Richard Parish Cncl,16206
Chorley Borough Council,http://statistics.data.gov.uk/id/local-authority/30UE,Parking Services,1066,GROW - Commercial Services,External Contractors,50008,Private Contractors,5042,"Processing 075, , Processing 076, , Processing 077, , Processing 079, , Processing 080, , Processing 085, , Processing 086, , MIP",18/10/2023,0185595,810.33,Revenue,Chipside Ltd,22063
Chorley Borough Council,http://statistics.data.gov.uk/id/local-authority/30UE,Regulatory Services,1048,PLAN - Planning & Development,Taxi Testing & Vehicle Safety Report,40234,Services,5027,Taxi tests and MOT,11/10/2023,0185426,"1,268.00",Revenue,Chorley Autocare Ltd,17110
Chorley Borough Council,http://statistics.data.gov.uk/id/local-authority/30UE,Homelessness,1075,EARL - Communities,Misc Expenses,40200,Miscellaneous Expenses,5034,cash on arrival,09/10/2023,0183423,"1,200.00",Revenue,Chorley BC Petty Cash,16301
Chorley Borough Council,http://statistics.data.gov.uk/id/local-authority/30UE,Central Support Services,1009,EARL - Communities,Children's Activities,40188,Miscellaneous Expenses,5034,Delivery and development of Chorley HAF summer 23 provision as per grant agreement,04/10/2023,0184956,"12,398.82",Revenue,Chorley School Sport Partnership,56115
Chorley Borough Council,http://statistics.data.gov.uk/id/local-authority/30UE,Central Support Services,1009,EARL - Communities,Children's Activities,40188,Miscellaneous Expenses,5034,Delivery and development of Chorley HAF summer 23 provision as per grant agreement,04/10/2023,0184957,"18,598.24",Revenue,Chorley School Sport Partnership,56115
Chorley Borough Council,http://statistics.data.gov.uk/id/local-authority/30UE,Central Support Services,1009,EARL - Communities,Children's Activities,40188,Miscellaneous Expenses,5034,Delivery of PASTA programme 3/4 payments,25/10/2023,0187389,"9,307.00",Revenue,Chorley School Sport Partnership,56115
Chorley Borough Council,http://statistics.data.gov.uk/id/local-authority/30UE,Central Support Services,1009,EARL - Communities,Misc Expenses,40200,Miscellaneous Expenses,5034,Adult health and wellbeing grant fund,11/10/2023,0185150,650.00,Revenue,Chorley Sheds,77469
Chorley Borough Council,http://statistics.data.gov.uk/id/local-authority/30UE,Service Management & Support,1009,CUST - Customer & Digital,Vehicles and Plant Maintenance,30045,Direct Transport Costs,5016,As per advice note COt3139,11/10/2023,0185400,"1,782.00",Revenue,Chorley Tyres,53719
Chorley Borough Council,http://statistics.data.gov.uk/id/local-authority/30UE,Corporate Management,1008,EARL - Communities,Other Contributions,40145,Grants and Subscriptions,5031,HSF additional Monies for CAB,04/10/2023,0185020,"24,000.00",Revenue,Citizens Advice Lancashire,17035
Chorley Borough Council,http://statistics.data.gov.uk/id/local-authority/30UE,Corporate Management,1008,EARL - Communities,Other Contributions,40145,Grants and Subscriptions,5031,Household Support fund 4 - Final allocation for HSF4,25/10/2023,0186078,"26,000.00",Revenue,Citizens Advice Lancashire,17035
Chorley Borough Council,http://statistics.data.gov.uk/id/local-authority/30UE,Economic Development,1096,GROW - Commercial Services,Fixtures & Fittings - Repair/Mtnce,20028,Fixtures and Fittings,5010,"To remove and replace catenary wire and associated fittings and replace with stainless steel option is discussed., , High Street ",04/10/2023,0184951,"7,110.00",Revenue,City Illuminations Ltd,77388
Chorley Borough Council,http://statistics.data.gov.uk/id/local-authority/30UE,Economic Development,1096,GROW - Commercial Services,Fixtures & Fittings - Repair/Mtnce,20028,Fixtures and Fittings,5010,"Removal of 1500m Summer bunting around Chorley Town Centre. , Market Street, Chapel Street and Fazakerley Streets. Single row dow",04/10/2023,0184958,"1,500.00",Revenue,City Illuminations Ltd,77388
Chorley Borough Council,http://statistics.data.gov.uk/id/local-authority/30UE,Business Support,1095,GROW - Commercial Services,Fixtures & Fittings - Repair/Mtnce,20028,Fixtures and Fittings,5010,"To remove and replace catenary wire and associated fittings and replace with staineless steel option, Works to include to replace",04/10/2023,0185034,"2,550.00",Revenue,City Illuminations Ltd,77388
Chorley Borough Council,http://statistics.data.gov.uk/id/local-authority/30UE,Service Management & Support,1009,CUST - Customer & Digital,Grounds Maintenance Contractor,20043,Grounds Maintenance Costs,5013,Supply a MWEP with man to take down the lamp post baskets in Adlington Parish,11/10/2023,0185201,650.00,Revenue,City Illuminations Ltd,77388
Chorley Borough Council,http://statistics.data.gov.uk/id/local-authority/30UE,Central Support Services,1009,CUST - Customer & Digital,IT Software - Annual Licences,40101,Communication and Computing,5028,"Civica Property Management (CPM) (formerly Tech Forge), 5 year contract 50/50 between authorities. , 329,500 total contract value",18/10/2023,0184518,"50,140.00",Revenue,Civica UK Limited,17463
Chorley Borough Council,http://statistics.data.gov.uk/id/local-authority/30UE,Central Support Services,1009,CUST - Customer & Digital,IT Software - Annual Licences,40101,Communication and Computing,5028,"Civica Property Management (CPM) (formerly Tech Forge), 5 year contract 50/50 between authorities. , 329,500 total contract value",18/10/2023,0184519,"63,040.00",Revenue,Civica UK Limited,17463
Chorley Borough Council,http://statistics.data.gov.uk/id/local-authority/30UE,Homelessness,1075,EARL - Communities,IT Software - Annual Licences,40101,Communication and Computing,5028,CIVICA Data Storage & Recovery Oct 2023,11/10/2023,0185397,"1,199.83",Revenue,Civica UK Limited,17463
Chorley Borough Council,http://statistics.data.gov.uk/id/local-authority/30UE,Homelessness,1075,EARL - Communities,IT Software - Annual Licences,40101,Communication and Computing,5028,"CIVICA Licence, Support and Maintenance Oct 2023",11/10/2023,0185398,"9,763.36",Revenue,Civica UK Limited,17463
Chorley Borough Council,http://statistics.data.gov.uk/id/local-authority/30UE,Central Support Services,1009,CUST - Customer & Digital,IT Software - Annual Licences,40101,Communication and Computing,5028,"Modern.Gov - Move to Hosting 7,000.00",18/10/2023,0185709,"7,000.00",Revenue,Civica UK Limited,17463
Chorley Borough Council,http://statistics.data.gov.uk/id/local-authority/30UE,Central Support Services,1009,CUST - Customer & Digital,IT Software - Annual Licences,40101,Communication and Computing,5028,"Chorley  30,530 made up as follows: Annual Support & Maintenance 16030 Web site rebranding 1500 Enhanced Training Package 600",25/10/2023,0185765,"1,500.00",Revenue,Civica UK Limited,17463
Chorley Borough Council,http://statistics.data.gov.uk/id/local-authority/30UE,Homelessness,1075,EARL - Communities,Grants - Tenant Participation,40142,Grants and Subscriptions,5031,,18/10/2023,0185891,500.00,Revenue,Claire Pilkington,85424
Chorley Borough Council,http://statistics.data.gov.uk/id/local-authority/30UE,Central Support Services,1009,CUST - Customer & Digital,Items For Resale,40027,"Equipment, Furniture & Materia",5023,"0905 Brown 240L wheeled bin. Quantity 540, Unit price : 19.20",25/10/2023,0185247,"10,368.00",Revenue,Contenur Uk Ltd,82451
Chorley Borough Council,http://statistics.data.gov.uk/id/local-authority/30UE,Capital,Capital,GROW - Commercial Services,Surveyors Fees,03021,Capital Expenditure,Capital,Tatton Gardens Roof Survey,18/10/2023,0185036,950.00,Capital,Cookson�s Consultancy Ltd,89440
Chorley Borough Council,http://statistics.data.gov.uk/id/local-authority/30UE,Recognised Cap Grants & Conts,,PLAN - Planning & Development,Contributions Parish Councils,40144,Grants and Subscriptions,5031,CIL 1st April - 30th Sept,18/10/2023,0185874,"8,616.53",Revenue,Coppull Parish Council,17025
Chorley Borough Council,http://statistics.data.gov.uk/id/local-authority/30UE,Culture & Heritage,1036,GOVN - Policy & Governance,Souvenirs,40033,"Equipment, Furniture & Materia",5023,"Product	 Code	 Qty	 Unit Price	 Total	 design, Will Bear	 6643	 96	 6.43	 617.28	 Astley Hall logo, Fridge Magnets	4988	 500",25/10/2023,0184941,"1,055.00",Revenue,Cornflower Ltd,80936
Chorley Borough Council,http://statistics.data.gov.uk/id/local-authority/30UE,Democratic Represent and  Mgnt,1007,GROW - Commercial Services,Gas,20014,Energy Costs,5006,"Astley Village Community Centre, Aug-23 to Sep-23",04/10/2023,0185115,597.72,Revenue,Corona Energy Retail 2 Ltd,67249
Chorley Borough Council,http://statistics.data.gov.uk/id/local-authority/30UE,Recreation & Sport,1037,GROW - Commercial Services,Gas,20014,Energy Costs,5006,"Clayton Brook Village Hall, Aug-23 to Sep-23",04/10/2023,0185116,743.99,Revenue,Corona Energy Retail 2 Ltd,67249
Chorley Borough Council,http://statistics.data.gov.uk/id/local-authority/30UE,Recreation & Sport,1037,GROW - Commercial Services,Gas,20014,Energy Costs,5006,"Lodge Bank, Aug-23 to Sep-23",04/10/2023,0185159,"11,393.42",Revenue,Corona Energy Retail 2 Ltd,67249
Chorley Borough Council,http://statistics.data.gov.uk/id/local-authority/30UE,Business Support,1095,GROW - Commercial Services,Gas,20014,Energy Costs,5006,"Fleet Street, Aug-23 to Sep-23",04/10/2023,0185160,"7,348.75",Revenue,Corona Energy Retail 2 Ltd,67249
Chorley Borough Council,http://statistics.data.gov.uk/id/local-authority/30UE,Homelessness,1075,GROW - Commercial Services,Gas,20014,Energy Costs,5006,"Cotswold House, Aug-23 to Sep-23",04/10/2023,0185164,"1,643.29",Revenue,Corona Energy Retail 2 Ltd,67249
Chorley Borough Council,http://statistics.data.gov.uk/id/local-authority/30UE,Democratic Represent and  Mgnt,1007,GROW - Commercial Services,Gas,20014,Energy Costs,5006,"Water Street, Aug-23 to Sept-23",04/10/2023,0185167,"39,809.46",Revenue,Corona Energy Retail 2 Ltd,67249
Chorley Borough Council,http://statistics.data.gov.uk/id/local-authority/30UE,Recreation & Sport,1037,GROW - Commercial Services,Gas,20014,Energy Costs,5006,"Centre Drive, Aug-23 to Sep-23",04/10/2023,0185170,"3,161.46",Revenue,Corona Energy Retail 2 Ltd,67249
Chorley Borough Council,http://statistics.data.gov.uk/id/local-authority/30UE,Central Support Services,1009,GROW - Commercial Services,Gas,20014,Energy Costs,5006,"Civic Offices, Aug-23 to Sep-23",04/10/2023,0185172,959.86,Revenue,Corona Energy Retail 2 Ltd,67249
Chorley Borough Council,http://statistics.data.gov.uk/id/local-authority/30UE,Democratic Represent and  Mgnt,1007,GROW - Commercial Services,Gas,20014,Energy Costs,5006,"Astley Hall, Aug-23 to Sep-23",04/10/2023,0185173,"1,320.12",Revenue,Corona Energy Retail 2 Ltd,67249
Chorley Borough Council,http://statistics.data.gov.uk/id/local-authority/30UE,Democratic Represent and  Mgnt,1007,GROW - Commercial Services,Gas,20014,Energy Costs,5006,"Astley Coach House, Aug-23 to Sep-23",04/10/2023,0185175,640.43,Revenue,Corona Energy Retail 2 Ltd,67249
Chorley Borough Council,http://statistics.data.gov.uk/id/local-authority/30UE,Business Support,1095,GROW - Commercial Services,Gas,20014,Energy Costs,5006,gas primrose gardens,04/10/2023,0185338,"7,348.75",Revenue,Corona Energy Retail 2 Ltd,67249
Chorley Borough Council,http://statistics.data.gov.uk/id/local-authority/30UE,Recreation & Sport,1037,GROW - Commercial Services,Gas,20014,Energy Costs,5006,gas centre drive,04/10/2023,0185339,"3,161.46",Revenue,Corona Energy Retail 2 Ltd,67249
Chorley Borough Council,http://statistics.data.gov.uk/id/local-authority/30UE,Central Support Services,1009,CUST - Customer & Digital,Computer Equipment - Security,40106,Communication and Computing,5028,"iPad mini 6 Wi-Fi + Cellular 64GB - Space Grey, MK893B/A, Price: 647.00 +vat, , , iPad mini 6 Tempered Glass Screen protector, P",04/10/2023,0185031,656.98,Revenue,Corporate Direct (Europe) Ltd,22135
Chorley Borough Council,http://statistics.data.gov.uk/id/local-authority/30UE,Capital,Capital,EARL - Communities,Grants,03002,Capital Expenditure,Capital,"22/00159/CAG, NAME REDACTED, ADDRESS REDACTED",04/10/2023,0185153,"2,024.00",Capital,D J Bathing,78482
Chorley Borough Council,http://statistics.data.gov.uk/id/local-authority/30UE,Capital,Capital,EARL - Communities,Grants,03002,Capital Expenditure,Capital,23/00056/CAG,25/10/2023,0187439,"5,412.00",Capital,D J Bathing,78482
Chorley Borough Council,http://statistics.data.gov.uk/id/local-authority/30UE,Central Support Services,1009,CUST - Customer & Digital,IT Software - Annual Licences,40101,Communication and Computing,5028,Dania Software - Accessibility software,09/10/2023,0183081,"1,285.00",Revenue,Dania Software A/S,81328
Chorley Borough Council,http://statistics.data.gov.uk/id/local-authority/30UE,Homelessness,1075,EARL - Communities,Grants - Tenant Participation,40142,Grants and Subscriptions,5031,,18/10/2023,0185898,500.00,Revenue,Daniel McKeown-Henshall,85588
Chorley Borough Council,http://statistics.data.gov.uk/id/local-authority/30UE,Culture & Heritage,1036,GOVN - Policy & Governance,Professional Fees,40063,Services,5027,"Design of three different styles for products for Astley Hall gift shop., , Astley Factual Print - 600, , Four simplistic drawin",25/10/2023,0185312,"2,000.00",Revenue,David Robinson Dave Rob Design,88590
Chorley Borough Council,http://statistics.data.gov.uk/id/local-authority/30UE,Central Support Services,1009,CUST - Customer & Digital,Computer Equipment-Purchase,40098,Communication and Computing,5028,"Dell Latitude 3440, XCTO SR 610.89 x 20, Dell Essential Backpack 15 (ES1520P) SR 11.51 x 20 grey",04/10/2023,0184076,"12,448.00",Revenue,Dell Corporation Ltd,64387
Chorley Borough Council,http://statistics.data.gov.uk/id/local-authority/30UE,Central Support Services,1009,CUST - Customer & Digital,Computer Equipment-Purchase,40098,Communication and Computing,5028,Monitors,04/10/2023,0184289,"7,452.60",Revenue,Dell Corporation Ltd,64387
Chorley Borough Council,http://statistics.data.gov.uk/id/local-authority/30UE,Central Support Services,1009,CUST - Customer & Digital,Computer Equipment-Purchase,40098,Communication and Computing,5028,30 dell laptops,04/10/2023,0184656,"19,406.40",Revenue,Dell Corporation Ltd,64387
Chorley Borough Council,http://statistics.data.gov.uk/id/local-authority/30UE,Tourism,1039,GOVN - Policy & Governance,Professional Fees,40063,Services,5027,CFS 23,18/10/2023,0185917,725.00,Revenue,Devine Nurseries,71497
Chorley Borough Council,http://statistics.data.gov.uk/id/local-authority/30UE,Central Support Services,1009,CUST - Customer & Digital,IT Consultancy Fees,40223,Services,5027,"quote - 8349-12Q1, , PEN Test Chorley and South Ribble Council",18/10/2023,0183927,"10,200.00",Revenue,Dionach Ltd,22031
Chorley Borough Council,http://statistics.data.gov.uk/id/local-authority/30UE,Central Support Services,1009,CUST - Customer & Digital,IT Consultancy Fees,40223,Services,5027,quote - 8349-12Q1 PEN Test Chorley and South Ribble Council,18/10/2023,0184210,"10,200.00",Revenue,Dionach Ltd,22031
Chorley Borough Council,http://statistics.data.gov.uk/id/local-authority/30UE,Central Support Services,1009,GOVN - Policy & Governance,Exhibitions & Special Events,40158,Miscellaneous Expenses,5034,"Check out Chorley attendance at BTTS 2024 (Invoice 1), Shell scheme corner site stand without app- B23, Insurance Participation F",25/10/2023,0185424,"2,207.50",Revenue,Diversified Business Communications UK,68712
Chorley Borough Council,http://statistics.data.gov.uk/id/local-authority/30UE,Capital,Capital,PLAN - Planning & Development,Main Contractor,03007,Capital Expenditure,Capital,King George V Playing Fields pitch maintenance 2023/2024 season. In accordance with quote submitted 28th March 2022 and condition,25/10/2023,0185226,916.20,Capital,Duncan Ross Ltd,76803
Chorley Borough Council,http://statistics.data.gov.uk/id/local-authority/30UE,Capital,Capital,PLAN - Planning & Development,Main Contractor,03007,Capital Expenditure,Capital,King George V Playing Fields pitch maintenance 2023/2024 season. In accordance with quote submitted 28th March 2022 and condition,25/10/2023,0187393,826.70,Capital,Duncan Ross Ltd,76803
Chorley Borough Council,http://statistics.data.gov.uk/id/local-authority/30UE,Central Support Services,1009,EARL - Communities,Tools & Equipment - Purchase,40003,"Equipment, Furniture & Materia",5023,"Quote Reference: QT002702 - South Ribble - Public Portal 1 relating to Zephyr network, , For any queries please contact NAME REDACTED",18/10/2023,0185375,"8,000.00",Revenue,Earthsense Systems Limited,82245
Chorley Borough Council,http://statistics.data.gov.uk/id/local-authority/30UE,Recognised Cap Grants & Conts,,PLAN - Planning & Development,Contributions Parish Councils,40144,Grants and Subscriptions,5031,CIL 1st April - 30th Sept,18/10/2023,0185873,"32,504.71",Revenue,Eccleston Parish Council,17027
Chorley Borough Council,http://statistics.data.gov.uk/id/local-authority/30UE,Central Support Services,1009,CUST - Customer & Digital,Mobile Voice and Data,40086,Communication and Computing,5028,Mobile phones,18/10/2023,0185758,"9,248.79",Revenue,EE - Orange,16486
Chorley Borough Council,http://statistics.data.gov.uk/id/local-authority/30UE,Central Support Services,1009,CUST - Customer & Digital,Mobile Voice and Data,40086,Communication and Computing,5028,"98870244, 03 Sep 23",25/10/2023,0185992,"9,237.13",Revenue,EE - Orange,16486
Chorley Borough Council,http://statistics.data.gov.uk/id/local-authority/30UE,Capital,Capital,GROW - Commercial Services,Main Contractor,03007,Capital Expenditure,Capital,New Electricity Connection - Manor Road,11/10/2023,0185457,"6,825.37",Capital,Electricity North West Ltd,17118
Chorley Borough Council,http://statistics.data.gov.uk/id/local-authority/30UE,Homelessness,1075,GROW - Commercial Services,Laundry,40042,"Clothing, Uniforms and Laundry",5025,"In respect of Laundry services for period , 01/04/23 - 31/03/2024, For , Cotswold Supported housing, Cotswold Rd , Chorley",11/10/2023,0185381,"1,291.68",Revenue,Elis UK Ltd,20799
Chorley Borough Council,http://statistics.data.gov.uk/id/local-authority/30UE,Homelessness,1075,EARL - Communities,Grants - Tenant Participation,40142,Grants and Subscriptions,5031,,18/10/2023,0185901,500.00,Revenue,Emma Tonge,85647
Chorley Borough Council,http://statistics.data.gov.uk/id/local-authority/30UE,Business Support,1095,GROW - Commercial Services,Internet Charges,40104,Communication and Computing,5028,"Operate, Platform and Calls & IP invoices for financial year April 2023 to March 2024",11/10/2023,0185419,"2,450.00",Revenue,Essensys Ltd,77836
Chorley Borough Council,http://statistics.data.gov.uk/id/local-authority/30UE,Business Support,1095,GROW - Commercial Services,Misc Expenses,40200,Miscellaneous Expenses,5034,wifi survey at Strawberry Fields,25/10/2023,0186098,"1,317.50",Revenue,Essensys Ltd,77836
Chorley Borough Council,http://statistics.data.gov.uk/id/local-authority/30UE,Recognised Cap Grants & Conts,,PLAN - Planning & Development,Contributions Parish Councils,40144,Grants and Subscriptions,5031,CIL 1st April - 30th Sept,18/10/2023,0185880,"18,507.80",Revenue,Euxton Parish Council,16838
Chorley Borough Council,http://statistics.data.gov.uk/id/local-authority/30UE,Service Management & Support,1009,CUST - Customer & Digital,Hire Of Vehicles and Plant,30028,Contrct Hire & Operating Lease,5018,"1 x triple rental per week at 375, 1x front deck rental per week at 295 , Total of 30 weeks rental",11/10/2023,0185148,"2,814.00",Revenue,F R Sharrock Ltd,18091
Chorley Borough Council,http://statistics.data.gov.uk/id/local-authority/30UE,Central Support Services,1009,CUST - Customer & Digital,Unitary Payment(S),50009,Private Contractors,5042,Provision of waste and recycling collection services to Chorley Council for 2023/24,18/10/2023,0183659,"216,154.79",Revenue,FCC Environment Services (UK) Limited,77903
Chorley Borough Council,http://statistics.data.gov.uk/id/local-authority/30UE,Central Support Services,1009,CUST - Customer & Digital,Unitary Payment(S),50009,Private Contractors,5042,Provision of waste and recycling collection services to Chorley Council for 2023/24,18/10/2023,0183736,"208,980.99",Revenue,FCC Environment Services (UK) Limited,77903
Chorley Borough Council,http://statistics.data.gov.uk/id/local-authority/30UE,Central Support Services,1009,CUST - Customer & Digital,Unitary Payment(S),50009,Private Contractors,5042,"Provision of waste and recycling collection services to Chorley Council Sept 2023 to March 2024, (* this is a new purchase order ",04/10/2023,0184772,"213,428.09",Revenue,FCC Recycling (UK) Ltd,89557
Chorley Borough Council,http://statistics.data.gov.uk/id/local-authority/30UE,Central Support Services,1009,CUST - Customer & Digital,Unitary Payment(S),50009,Private Contractors,5042,"Provision of waste and recycling collection services to Chorley Council Sept 2023 to March 2024, (* this is a new purchase order ",25/10/2023,0187343,"219,249.88",Revenue,FCC Recycling (UK) Ltd,89557
Chorley Borough Council,http://statistics.data.gov.uk/id/local-authority/30UE,Central Support Services,1009,EARL - Communities,Children's Activities,40188,Miscellaneous Expenses,5034,Delivery of Chorley HAF Programme Summer 23 as per grant agreement,18/10/2023,0185309,"4,096.00",Revenue,First Kick Coaching,89305
Chorley Borough Council,http://statistics.data.gov.uk/id/local-authority/30UE,Central Support Services,1009,GOVN - Policy & Governance,Legal Fees,40171,Miscellaneous Expenses,5034,Counsels fee paid by Forbes regarding defending of injunction and title documents review,18/10/2023,0185180,"2,250.00",Revenue,Forbes Solicitors,17527
Chorley Borough Council,http://statistics.data.gov.uk/id/local-authority/30UE,Homelessness,1075,EARL - Communities,Grants - Tenant Participation,40142,Grants and Subscriptions,5031,,18/10/2023,0185892,500.00,Revenue,Francis Marsden,85643
Chorley Borough Council,http://statistics.data.gov.uk/id/local-authority/30UE,Building Control,1090,PLAN - Planning & Development,Professional Fees,40063,Services,5027,Contracter fees for NAME REDACTED Building Control Officer commencing 11.07.2023 for 6 months,04/10/2023,0185127,"3,050.00",Revenue,Fraser Building Management Services Limited,89405
Chorley Borough Council,http://statistics.data.gov.uk/id/local-authority/30UE,Homelessness,1075,GROW - Commercial Services,Furniture - Purchase,40012,"Equipment, Furniture & Materia",5023,"1 x York dining table @ 134.60 each, 10 x York dining chair @ 89.23 each , 2 x bed base @ 76.21 each",18/10/2023,0185416,624.61,Revenue,Furniture Resource Centre Ltd,22085
Chorley Borough Council,http://statistics.data.gov.uk/id/local-authority/30UE,Homelessness,1075,EARL - Communities,Grants - Tenant Participation,40142,Grants and Subscriptions,5031,,18/10/2023,0185884,500.00,Revenue,Gary MacFarlane,85416
Chorley Borough Council,http://statistics.data.gov.uk/id/local-authority/30UE,Open Spaces,1038,CUST - Customer & Digital,Playground Equipment,40008,"Equipment, Furniture & Materia",5023,"Supply 30m x 10mm Cable with thimble eye at one end , 1.00 SP-05-007C Extra Strong Brake Spring 2m long , 4.00 SP-01-061 Curve Cr",11/10/2023,0185119,969.10,Revenue,GB Sport & Leisure,21305
Chorley Borough Council,http://statistics.data.gov.uk/id/local-authority/30UE,Business Support,1095,GROW - Commercial Services,Agency Staff,13000,Direct Employee Expenses,5001,"Cleaning cover Hours W/C 11.09.23 @16.50ph , , NAME REDACTED- 16hrs , NAME REDACTED- 24hrs",04/10/2023,0185207,660.00,Revenue,Gemini Group Ltd,83969
Chorley Borough Council,http://statistics.data.gov.uk/id/local-authority/30UE,Homelessness,1075,EARL - Communities,Grants - Tenant Participation,40142,Grants and Subscriptions,5031,,18/10/2023,0185885,500.00,Revenue,Georgia Louise Cann,85496
Chorley Borough Council,http://statistics.data.gov.uk/id/local-authority/30UE,Corporate Management,1008,GOVN - Policy & Governance,Consultants` Fees,40077,Services,5027,"Consultancy Fees:, As per business agreement dated January 2023, Development of New Hospital Programme (NHP)",04/10/2023,0185029,"11,231.00",Revenue,GNC Consultancy Services Limited,87271
Chorley Borough Council,http://statistics.data.gov.uk/id/local-authority/30UE,Service Management & Support,1009,CUST - Customer & Digital,Vehicles and Plant Maintenance,30045,Direct Transport Costs,5016,"PEN3065 , Replace broken front shocker",11/10/2023,0185121,631.04,Revenue,Go Plant Fleet Services Ltd,80857
Chorley Borough Council,http://statistics.data.gov.uk/id/local-authority/30UE,Service Management & Support,1009,CUST - Customer & Digital,Supplies-Grounds Maintenance,40025,"Equipment, Furniture & Materia",5023,ADDRESS REDACTED poly wire brush & delivery,11/10/2023,0185357,753.30,Revenue,Go Plant Fleet Services Ltd,80857
Chorley Borough Council,http://statistics.data.gov.uk/id/local-authority/30UE,Service Management & Support,1009,CUST - Customer & Digital,Supplies-Grounds Maintenance,40025,"Equipment, Furniture & Materia",5023,"As Job sheet No PEN3140, 13 Brushes",11/10/2023,0185358,793.67,Revenue,Go Plant Fleet Services Ltd,80857
Chorley Borough Council,http://statistics.data.gov.uk/id/local-authority/30UE,Central Support Services,1009,CUST - Customer & Digital,Computer Software-Maintenance,40107,Communication and Computing,5028,"GOSS Content, GOSS Forms , GOSS Theme support - Chilli, Cruise and Impact themes , annual renewal",25/10/2023,0185021,"1,740.00",Revenue,GOSS Interactive Limited,20316
Chorley Borough Council,http://statistics.data.gov.uk/id/local-authority/30UE,Central Support Services,1009,CUST - Customer & Digital,Computer Software-Maintenance,40107,Communication and Computing,5028,"GOSS Content, GOSS Forms , GOSS Theme support - Chilli, Cruise and Impact themes , annual renewal",25/10/2023,0185022,"1,740.00",Revenue,GOSS Interactive Limited,20316
Chorley Borough Council,http://statistics.data.gov.uk/id/local-authority/30UE,Central Support Services,1009,CUST - Customer & Digital,Computer Software-Maintenance,40107,Communication and Computing,5028,"GOSS Content, GOSS Forms , GOSS Theme support - Chilli, Cruise and Impact themes , annual renewal",04/10/2023,0185023,"30,600.00",Revenue,GOSS Interactive Limited,20316
Chorley Borough Council,http://statistics.data.gov.uk/id/local-authority/30UE,Central Support Services,1009,CUST - Customer & Digital,Computer Software-Maintenance,40107,Communication and Computing,5028,"GOSS Content, GOSS Forms , GOSS Theme support - Chilli, Cruise and Impact themes , annual renewal",25/10/2023,0185024,"1,740.00",Revenue,GOSS Interactive Limited,20316
Chorley Borough Council,http://statistics.data.gov.uk/id/local-authority/30UE,Central Support Services,1009,CUST - Customer & Digital,Computer Software-Maintenance,40107,Communication and Computing,5028,"GOSS Content, GOSS Forms , GOSS Theme support - Chilli, Cruise and Impact themes , annual renewal",25/10/2023,0185025,"3,000.00",Revenue,GOSS Interactive Limited,20316
Chorley Borough Council,http://statistics.data.gov.uk/id/local-authority/30UE,Central Support Services,1009,PLAN - Planning & Development,Vandalism Repairs,20005,Repairs Maintenance & Alts,5005,Grafitti removal contract August 2023 onging,18/10/2023,0185979,750.00,Revenue,Graffiti Away Ltd,78340
Chorley Borough Council,http://statistics.data.gov.uk/id/local-authority/30UE,Capital,Capital,GROW - Commercial Services,Main Contractor,03007,Capital Expenditure,Capital,New supply of required furniture for Cafe refurbishment at All Seasons Leisure Centre,25/10/2023,0185846,"4,455.50",Capital,Grafton Projects Limited,76545
Chorley Borough Council,http://statistics.data.gov.uk/id/local-authority/30UE,Corporate Management,1008,GOVN - Policy & Governance,External Audit,40064,Services,5027,Subsidy Audit 2021/22,25/10/2023,0184174,"28,580.00",Revenue,Grant Thornton UK LLP,57322
Chorley Borough Council,http://statistics.data.gov.uk/id/local-authority/30UE,Corporate Management,1008,GROW - Commercial Services,Publicity - Advertising,40157,Miscellaneous Expenses,5034,"Social media for Market Walk Shopping Centre Chorley., , August 23 @ 500 per month, , September 23 @ 500 per month",18/10/2023,0185747,500.00,Revenue,Gravity,77837
Chorley Borough Council,http://statistics.data.gov.uk/id/local-authority/30UE,Service Management & Support,1009,CUST - Customer & Digital,External Contractor,40198,Miscellaneous Expenses,5034,"As per Quotation QU-0233, Removal and disposal of Asbestos on Eyes Lane, Bretherton",25/10/2023,0183831,595.00,Revenue,Greenfield Removals Limited,78440
Chorley Borough Council,http://statistics.data.gov.uk/id/local-authority/30UE,Tourism,1039,GOVN - Policy & Governance,Professional Fees,40063,Services,5027,"Demonstration of cleft ash hurdles @130/ day, At the Chorley Flower Show 28th, 29th, and 30th July 2023 		 390, , Demonstration",04/10/2023,0183520,780.00,Revenue,Greenwood Twiggs,76970
Chorley Borough Council,http://statistics.data.gov.uk/id/local-authority/30UE,Economic Development,1096,GROW - Commercial Services,Agency Staff,13000,Direct Employee Expenses,5001,NAME REDACTED - Invoice ref 1012643973 (Outstanding Payment),18/10/2023,0184032,"2,760.00",Revenue,Hays Senior Finance,20078
Chorley Borough Council,http://statistics.data.gov.uk/id/local-authority/30UE,Recognised Cap Grants & Conts,,PLAN - Planning & Development,Contributions Parish Councils,40144,Grants and Subscriptions,5031,CIL 1st April - 30th sept,18/10/2023,0185881,"1,296.64",Revenue,Heath Charnock Parish Council,16208
Chorley Borough Council,http://statistics.data.gov.uk/id/local-authority/30UE,Homelessness,1075,EARL - Communities,Grants - Tenant Participation,40142,Grants and Subscriptions,5031,,18/10/2023,0185899,500.00,Revenue,Helen Millward,87008
Chorley Borough Council,http://statistics.data.gov.uk/id/local-authority/30UE,Central Support Services,1009,CUST - Customer & Digital,Computer Software-Purchase,40100,Communication and Computing,5028,"Access control hardware, Door installation and configuration (including PM), Time recording hardware, Professional Services, Tota",11/10/2023,0183501,"19,123.30",Revenue,Hfx Ltd,17164
Chorley Borough Council,http://statistics.data.gov.uk/id/local-authority/30UE,Service Management & Support,1009,CUST - Customer & Digital,Training Course Fees,17010,Indirect Employee Expenses,5002,"As per NAME REDACTED Email Booking , 1 x candidate Class 2 HGV training",11/10/2023,0185395,839.18,Revenue,HGV Training Services Limited (HGVC),89585
Chorley Borough Council,http://statistics.data.gov.uk/id/local-authority/30UE,Central Support Services,1009,EARL - Communities,Children's Activities,40188,Miscellaneous Expenses,5034,Delivery of Chorley HAF Programme Summer 23 as per grant agreement,18/10/2023,0185847,"2,880.00",Revenue,High Five,84108
Chorley Borough Council,http://statistics.data.gov.uk/id/local-authority/30UE,Unapportionable Central OHeads,1009,GOVN - Policy & Governance,Misc Expenses,40200,Miscellaneous Expenses,5034,healthcare PSA settlement 22/23,18/10/2023,0185987,"11,061.20",Revenue,HM Revenue & Customs,21907
Chorley Borough Council,http://statistics.data.gov.uk/id/local-authority/30UE,Central Support Services,1009,GOVN - Policy & Governance,Other Fees,40212,Miscellaneous Expenses,5034,FACCT Fee-0009097113,09/10/2023,0184495,"4,500.00",Revenue,HMCTS (DD),88722
Chorley Borough Council,http://statistics.data.gov.uk/id/local-authority/30UE,Recognised Cap Grants & Conts,,PLAN - Planning & Development,Contributions Parish Councils,40144,Grants and Subscriptions,5031,CIL 1st April - 30th Sept,18/10/2023,0185879,"2,231.96",Revenue,Hoghton Parish Council,16188
Chorley Borough Council,http://statistics.data.gov.uk/id/local-authority/30UE,Central Support Services,1009,GOVN - Policy & Governance,Legal Fees,40171,Miscellaneous Expenses,5034,Legal advice and representation in relation to claim for costs against Interlec Systems Ltd following the Council�s successful de,25/10/2023,0178809,"1,575.00",Revenue,Horwich Farrelly Limited,63367
Chorley Borough Council,http://statistics.data.gov.uk/id/local-authority/30UE,Central Support Services,1009,CUST - Customer & Digital,IT Consultancy Fees,40223,Services,5027,"laptop Intune - Image creation and documentation 6500.00 manage, build, asset track and delivery service 1550.00",18/10/2023,0184524,"6,500.00",Revenue,Hybrit LLP,77925
Chorley Borough Council,http://statistics.data.gov.uk/id/local-authority/30UE,Central Support Services,1009,CUST - Customer & Digital,IT Consultancy Fees,40223,Services,5027,"laptop Intune - Image creation and documentation 6500.00 manage, build, asset track and delivery service 1550.00",18/10/2023,0184953,"1,550.00",Revenue,Hybrit LLP,77925
Chorley Borough Council,http://statistics.data.gov.uk/id/local-authority/30UE,Central Support Services,1009,CUST - Customer & Digital,Telephones - Other,40085,Communication and Computing,5028,Hybrit SIP charges Sept 23,04/10/2023,0185231,747.50,Revenue,Hybrit LLP,77925
Chorley Borough Council,http://statistics.data.gov.uk/id/local-authority/30UE,Business Support,1095,GROW - Commercial Services,Computer Equipment-Purchase,40098,Communication and Computing,5028,"Per your quotation ``Videowall and Boardroom`` sent 20/12/22, Boardroom , -	Supply of a webcam to sit above the screen, -	PSU for",04/10/2023,0177538,576.00,Revenue,IDN Supplies,78102
Chorley Borough Council,http://statistics.data.gov.uk/id/local-authority/30UE,Business Support,1095,GROW - Commercial Services,Computer Equipment-Purchase,40098,Communication and Computing,5028,"Per your quotation ``Videowall and Boardroom`` sent 20/12/22, Boardroom , -	Supply of a webcam to sit above the screen, -	PSU for",04/10/2023,0177728,675.00,Revenue,IDN Supplies,78102
Chorley Borough Council,http://statistics.data.gov.uk/id/local-authority/30UE,Central Support Services,1009,CUST - Customer & Digital,IT Software - Annual Licences,40101,Communication and Computing,5028,Oracle Licensing,04/10/2023,0184653,"2,500.00",Revenue,IDOX Software Limited,17542
Chorley Borough Council,http://statistics.data.gov.uk/id/local-authority/30UE,Capital,Capital,EARL - Communities,Grants,03002,Capital Expenditure,Capital,"23/00039/CAG, NAME REDACTED, ADDRESS REDACTED",04/10/2023,0185154,"4,185.73",Capital,Independent Adaptations Ltd,77973
Chorley Borough Council,http://statistics.data.gov.uk/id/local-authority/30UE,Central Support Services,1009,GOVN - Policy & Governance,Refuse Collection,20037,Cleaning and Domestic Supplies,5012,supply of hygiene services to all council sites,04/10/2023,0184187,683.56,Revenue,Initial,78488
Chorley Borough Council,http://statistics.data.gov.uk/id/local-authority/30UE,Homelessness,1075,EARL - Communities,Grants - Tenant Participation,40142,Grants and Subscriptions,5031,,18/10/2023,0185895,500.00,Revenue,Jason O`Flaherty,85502
Chorley Borough Council,http://statistics.data.gov.uk/id/local-authority/30UE,Capital,Capital,GROW - Commercial Services,Other Capital Related Fees,03024,Capital Expenditure,Capital,Tatton Gardens Lifting Barrier,18/10/2023,0180850,"2,978.00",Capital,John Wade Groundworks Ltd,76676
Chorley Borough Council,http://statistics.data.gov.uk/id/local-authority/30UE,Culture & Heritage,1036,GOVN - Policy & Governance,Exhibitions & Special Events,40158,Miscellaneous Expenses,5034,Illuminated 2023 - 2 Lumen performers,11/10/2023,0185360,525.00,Revenue,Joogleberry Ltd,88416
Chorley Borough Council,http://statistics.data.gov.uk/id/local-authority/30UE,Culture & Heritage,1036,GOVN - Policy & Governance,Exhibitions & Special Events,40158,Miscellaneous Expenses,5034,Illuminated 2023 - 2 Lumen performers,25/10/2023,0185399,525.00,Revenue,Joogleberry Ltd,88416
Chorley Borough Council,http://statistics.data.gov.uk/id/local-authority/30UE,Homelessness,1075,EARL - Communities,Grants - Tenant Participation,40142,Grants and Subscriptions,5031,,18/10/2023,0185887,500.00,Revenue,Joyce Harasimiuk,85418
Chorley Borough Council,http://statistics.data.gov.uk/id/local-authority/30UE,Control Accounts,Control,GROW - Commercial Services,Manual Control Account,00001,Balance Sheet,Balance,,04/10/2023,0185094,"2,166.88",Revenue,Kenneth Smyth,84175
Chorley Borough Council,http://statistics.data.gov.uk/id/local-authority/30UE,Economic Development,1096,GROW - Commercial Services,Refuse Collection,20037,Cleaning and Domestic Supplies,5012,Market Walk/Market Walk Extension/Markets/Calico Lounge/Reel Cinema Waste Removal 01.04.2023 - 31.03.2024: Market Walk YARD 1 - G,11/10/2023,0185459,"1,836.00",Revenue,Kenny Waste Management Ltd,88641
Chorley Borough Council,http://statistics.data.gov.uk/id/local-authority/30UE,Homelessness,1075,EARL - Communities,Grants - Tenant Participation,40142,Grants and Subscriptions,5031,,18/10/2023,0185897,500.00,Revenue,Kevin Eardley,85644
Chorley Borough Council,http://statistics.data.gov.uk/id/local-authority/30UE,Service Management & Support,1009,CUST - Customer & Digital,Protective Clothing,40040,"Clothing, Uniforms and Laundry",5025,"Quantity x 5- Size XL, x 6- Size L, x 6- Size M, INSTOW @ 20.66 each, Pulsar P206 Hi Viz Yellow over trouser; � Breathable 300-d",25/10/2023,0185822,675.62,Revenue,Key Engineering & Hygene Supplies,51615
Chorley Borough Council,http://statistics.data.gov.uk/id/local-authority/30UE,Service Management & Support,1009,CUST - Customer & Digital,Supplies-Grounds Maintenance,40025,"Equipment, Furniture & Materia",5023,"as per Quote number 02012310QUO00001/00, 200-000680 5 Kilos TALON Wax Blocks0051192 , Quantity x 20",11/10/2023,0185374,"1,105.20",Revenue,Killgerm Chemicals Ltd,16879
Chorley Borough Council,http://statistics.data.gov.uk/id/local-authority/30UE,Control Accounts,Control,GOVN - Policy & Governance,General Balances,00100,Balance Sheet,Balance,Labour Councillors Association - Sep 23 Monthly Deductions from Payroll,11/10/2023,0185619,"1,882.62",Revenue,Labour Councillors Association,17577
Chorley Borough Council,http://statistics.data.gov.uk/id/local-authority/30UE,Control Accounts,Control,GROW - Commercial Services,Manual Control Account,00001,Balance Sheet,Balance,,25/10/2023,0185883,"4,156.35",Revenue,Ladbrokes Betting & Gaming Ltd,89460
Chorley Borough Council,http://statistics.data.gov.uk/id/local-authority/30UE,Precepts and Collection Fund,Precepts,GOVN - Policy & Governance,LCC Precept,02009,Precepts & Collection Fund,Precept,LCC council tax precept,09/10/2023,0184106,"5,971,419.00",Revenue,Lancashire County Council,18386
Chorley Borough Council,http://statistics.data.gov.uk/id/local-authority/30UE,Collection Fund Revenue Accoun,,GOVN - Policy & Governance,NNDR County Share,02036,Precepts & Collection Fund,Precept,LCC business rates precept,09/10/2023,0184106,"244,995.00",Revenue,Lancashire County Council,18386
Chorley Borough Council,http://statistics.data.gov.uk/id/local-authority/30UE,Precepts and Collection Fund,Precepts,GOVN - Policy & Governance,LCC Precept,02009,Precepts & Collection Fund,Precept,LCC Council tax precept,09/10/2023,0185316,"5,971,419.00",Revenue,Lancashire County Council,18386
Chorley Borough Council,http://statistics.data.gov.uk/id/local-authority/30UE,Collection Fund Revenue Accoun,,GOVN - Policy & Governance,NNDR County Share,02036,Precepts & Collection Fund,Precept,LCCC Business rates precept,09/10/2023,0185316,"244,995.00",Revenue,Lancashire County Council,18386
Chorley Borough Council,http://statistics.data.gov.uk/id/local-authority/30UE,Planning Policy,1092,PLAN - Planning & Development,General Subscriptions,40146,Grants and Subscriptions,5031,Environmental information services provided by Lancashire Environmental Record Network (LERN) during 2023/24.,18/10/2023,0185812,"3,662.00",Revenue,Lancashire County Council,17758
Chorley Borough Council,http://statistics.data.gov.uk/id/local-authority/30UE,Central Support Services,1009,CUST - Customer & Digital,Clinical Waste Collection,50007,Private Contractors,5042,Domestic clinical waste collections 2023/24,25/10/2023,0185771,"2,864.00",Revenue,Lancashire Environmental Services,82309
Chorley Borough Council,http://statistics.data.gov.uk/id/local-authority/30UE,Unapportionable Central OHeads,1009,GROW - Commercial Services,General Repairs - Reactive,20004,Repairs Maintenance & Alts,5005,"Reactive Gas, Air Conditioning and Plumbing Repair Works @ Astley Hall & Buildings",04/10/2023,0184671,776.85,Revenue,Lancashire Gas Services Ltd,78192
Chorley Borough Council,http://statistics.data.gov.uk/id/local-authority/30UE,Unapportionable Central OHeads,1009,GROW - Commercial Services,General Repairs - Reactive,20004,Repairs Maintenance & Alts,5005,"Reactive Gas, Air Conditioning and Plumbing Repair Works @ Town Hall",04/10/2023,0184904,"1,122.00",Revenue,Lancashire Gas Services Ltd,78192
Chorley Borough Council,http://statistics.data.gov.uk/id/local-authority/30UE,Business Support,1095,GROW - Commercial Services,General Repairs - Reactive,20004,Repairs Maintenance & Alts,5005,"Reactive Gas, Air Conditioning and Plumbing Repair Works @ Strawberry Fields",04/10/2023,0184905,"2,434.48",Revenue,Lancashire Gas Services Ltd,78192
Chorley Borough Council,http://statistics.data.gov.uk/id/local-authority/30UE,Unapportionable Central OHeads,1009,GROW - Commercial Services,General Repairs - Reactive,20004,Repairs Maintenance & Alts,5005,"Reactive Gas, Air Conditioning and Plumbing Repair Works @ Town Hall",11/10/2023,0185277,"1,394.40",Revenue,Lancashire Gas Services Ltd,78192
Chorley Borough Council,http://statistics.data.gov.uk/id/local-authority/30UE,Precepts and Collection Fund,Precepts,GOVN - Policy & Governance,LCFA Precept,02011,Precepts & Collection Fund,Precept,LCFA council tax precept,09/10/2023,0184105,"312,066.00",Revenue,Lancs Combined Fire Authority,17768
Chorley Borough Council,http://statistics.data.gov.uk/id/local-authority/30UE,Collection Fund Revenue Accoun,,GOVN - Policy & Governance,NNDR Fire Share,02037,Precepts & Collection Fund,Precept,LCFA business rates precept,09/10/2023,0184105,"27,221.00",Revenue,Lancs Combined Fire Authority,17768
Chorley Borough Council,http://statistics.data.gov.uk/id/local-authority/30UE,Precepts and Collection Fund,Precepts,GOVN - Policy & Governance,LCFA Precept,02011,Precepts & Collection Fund,Precept,LCFA council tax precept,09/10/2023,0185317,"312,066.00",Revenue,Lancs Combined Fire Authority,17768
Chorley Borough Council,http://statistics.data.gov.uk/id/local-authority/30UE,Collection Fund Revenue Accoun,,GOVN - Policy & Governance,NNDR Fire Share,02037,Precepts & Collection Fund,Precept,LCFA business rates precept,09/10/2023,0185317,"27,221.00",Revenue,Lancs Combined Fire Authority,17768
Chorley Borough Council,http://statistics.data.gov.uk/id/local-authority/30UE,Business Support,1095,GOVN - Policy & Governance,Car Leasing Payment,14100,Direct Employee Expenses,5001,VIN REDACTED: NAME REDACTED - 20 Oct 23 to 19 Oct 24,11/10/2023,0185546,"2,230.15",Revenue,LeasePlan UK Ltd T/A Automotive Leasing,65197
Chorley Borough Council,http://statistics.data.gov.uk/id/local-authority/30UE,Unapportionable Central OHeads,1009,GOVN - Policy & Governance,Furniture - Maintenance,40014,"Equipment, Furniture & Materia",5023,Cleaning of carpets in the Lancastrian and Bar at the Town Hall.,04/10/2023,0185110,700.00,Revenue,Leyland Cleaning Services Limited,21612
Chorley Borough Council,http://statistics.data.gov.uk/id/local-authority/30UE,Unapportionable Central OHeads,1009,GOVN - Policy & Governance,Furniture - Maintenance,40014,"Equipment, Furniture & Materia",5023,Cleaning of carpets in the Council Chamber and Mayor`s Parlour.,04/10/2023,0185110,520.00,Revenue,Leyland Cleaning Services Limited,21612
Chorley Borough Council,http://statistics.data.gov.uk/id/local-authority/30UE,Unapportionable Central OHeads,1009,GOVN - Policy & Governance,Training Course Fees,17010,Indirect Employee Expenses,5002,"Collection Fund, Business Rates and Council Tax training on 5th October 2023 by NAME REDACTED.",11/10/2023,0185355,"2,595.00",Revenue,LG Futures,22551
Chorley Borough Council,http://statistics.data.gov.uk/id/local-authority/30UE,Corporate Management,1008,GOVN - Policy & Governance,Treasury Management Service,40065,Services,5027,Treasury Services for the period 01/04/2023 - 30/09/2023,11/10/2023,0185493,"8,225.00",Revenue,Link Treasury Services Limited,16428
Chorley Borough Council,http://statistics.data.gov.uk/id/local-authority/30UE,Central Support Services,1009,GOVN - Policy & Governance,Legal Fees,40171,Miscellaneous Expenses,5034,"NAME REDACTED Closure Notice hearing-attendance at Court, brief on hearing and further costs hearing",18/10/2023,0185184,"4,550.00",Revenue,Lisa Feng,89592
Chorley Borough Council,http://statistics.data.gov.uk/id/local-authority/30UE,Unapportionable Central OHeads,1009,GOVN - Policy & Governance,HR Approved Occ Health Fees,15201,Indirect Employee Expenses,5002,Counselling for Staff in August 2023,18/10/2023,0185027,675.00,Revenue,Livewell Counselling Service,63084
Chorley Borough Council,http://statistics.data.gov.uk/id/local-authority/30UE,Business Support,1095,PLAN - Planning & Development,Grants To Other Organisations,40127,Grants and Subscriptions,5031,ADDRESS REDACTED,18/10/2023,0185314,"3,072.11",Revenue,Liz Lewis Hair,89575
Chorley Borough Council,http://statistics.data.gov.uk/id/local-authority/30UE,Homelessness,1075,EARL - Communities,Grants - Tenant Participation,40142,Grants and Subscriptions,5031,,18/10/2023,0185886,500.00,Revenue,Louise Arnold,85417
Chorley Borough Council,http://statistics.data.gov.uk/id/local-authority/30UE,Service Management & Support,1009,CUST - Customer & Digital,Vehicles and Plant Maintenance,30045,Direct Transport Costs,5016,repair 3 Sthil mowers by re-constructing the front valance in aluminium,18/10/2023,0185601,715.00,Revenue,Lyndhurst Precision Engineering Limited,89552
Chorley Borough Council,http://statistics.data.gov.uk/id/local-authority/30UE,Recreation & Sport,1037,GROW - Commercial Services,Misc Expenses,40200,Miscellaneous Expenses,5034,"Muscular Shelving Starter Unit 2000 X 1000 X 350mm, Product Code: 1.487.827, GBP 88.91 each, , 7 needed - Total Cost = 622.37",04/10/2023,0185321,622.37,Revenue,Lyreco UK Ltd,17623
Chorley Borough Council,http://statistics.data.gov.uk/id/local-authority/30UE,Recognised Cap Grants & Conts,,PLAN - Planning & Development,Contributions Parish Councils,40144,Grants and Subscriptions,5031,CIL 1st april - 30th sept,18/10/2023,0185878,"9,258.48",Revenue,Mawdesley Parish Council,17570
Chorley Borough Council,http://statistics.data.gov.uk/id/local-authority/30UE,Tourism,1039,CUST - Customer & Digital,Tools & Equipment - Hire,40004,"Equipment, Furniture & Materia",5023,Supply 20 tonnes of grade 1 top soil for re-instatement at Astley Park,11/10/2023,0185012,505.00,Revenue,Mc & Ma Stewart (Haulage Ltd),16627
Chorley Borough Council,http://statistics.data.gov.uk/id/local-authority/30UE,Central Support Services,1009,CUST - Customer & Digital,Tools & Equipment - Purchase,40003,"Equipment, Furniture & Materia",5023,"200x 240L green bin lids, 100x 240L blue bin lids",04/10/2023,0184919,"2,400.00",Revenue,MGB Plastics Ltd,18624
Chorley Borough Council,http://statistics.data.gov.uk/id/local-authority/30UE,Capital,Capital,EARL - Communities,Grants,03002,Capital Expenditure,Capital,"23/00036/DFG, NAME REDACTED, ADDRESS REDACTED",04/10/2023,0185155,"6,075.49",Capital,Mint Northwest Ltd,65607
Chorley Borough Council,http://statistics.data.gov.uk/id/local-authority/30UE,Capital,Capital,EARL - Communities,Grants,03002,Capital Expenditure,Capital,"22/00098/CAG, ADDRESS REDACTED",18/10/2023,0185971,"6,428.07",Capital,Mint Northwest Ltd,65607
Chorley Borough Council,http://statistics.data.gov.uk/id/local-authority/30UE,Private Sector HSG Renewal,1073,EARL - Communities,External Contractor,40198,Miscellaneous Expenses,5034,Ref 200874,11/10/2023,0184909,880.00,Revenue,Mobility Care Services,70841
Chorley Borough Council,http://statistics.data.gov.uk/id/local-authority/30UE,Private Sector HSG Renewal,1073,EARL - Communities,External Contractor,40198,Miscellaneous Expenses,5034,Ref 200883,11/10/2023,0184909,790.00,Revenue,Mobility Care Services,70841
Chorley Borough Council,http://statistics.data.gov.uk/id/local-authority/30UE,Private Sector HSG Renewal,1073,EARL - Communities,External Contractor,40198,Miscellaneous Expenses,5034,Ref 200904,11/10/2023,0184909,990.00,Revenue,Mobility Care Services,70841
Chorley Borough Council,http://statistics.data.gov.uk/id/local-authority/30UE,Capital,Capital,PLAN - Planning & Development,Main Contractor,03007,Capital Expenditure,Capital,Gillet Playing Fields footpaths and fencing,18/10/2023,0185849,"9,673.00",Capital,Mr Andy Hart,72236
Chorley Borough Council,http://statistics.data.gov.uk/id/local-authority/30UE,Tourism,1039,GOVN - Policy & Governance,Promotional Expenses,40159,Miscellaneous Expenses,5034,"44PP A6 PORTRAIT SELF COVER CHORLEY LIVE PROGRAMME, Size: A6., Artwork: From Press-Ready PDF Supplied with all ticks and bleeds.,",25/10/2023,0187411,"2,234.00",Revenue,N B Colour Print Ltd,17917
Chorley Borough Council,http://statistics.data.gov.uk/id/local-authority/30UE,Development Control,1091,PLAN - Planning & Development,Statutory Notices,40160,Miscellaneous Expenses,5034,Planning Public Notices to appear in the Chorley Guardian April 2023 to March 2024,11/10/2023,0185055,670.14,Revenue,National World Publishing Limited,20072
Chorley Borough Council,http://statistics.data.gov.uk/id/local-authority/30UE,Development Control,1091,PLAN - Planning & Development,Statutory Notices,40160,Miscellaneous Expenses,5034,Planning Public Notices to appear in the Chorley Guardian April 2023 to March 2024,11/10/2023,0185559,"1,005.21",Revenue,National World Publishing Limited,20072
Chorley Borough Council,http://statistics.data.gov.uk/id/local-authority/30UE,Central Support Services,1009,CUST - Customer & Digital,Computer Software-Additional,40102,Communication and Computing,5028,"3 days consultancy to remove existing cache copied from customer to NEC & re-copy after admin work is completed., � To be deliver",04/10/2023,0184860,"3,300.00",Revenue,NEC Software Solutions UK Ltd,18285
Chorley Borough Council,http://statistics.data.gov.uk/id/local-authority/30UE,Homelessness,1075,EARL - Communities,External Contractors,50008,Private Contractors,5042,Progress Lifeline - CONTROL CENTRE MONITORING 01.04.2023 - 31.03.2024 - HOMELESS SERVICE,18/10/2023,0185746,"5,063.76",Revenue,New Progress Housing Association Ltd,17922
Chorley Borough Council,http://statistics.data.gov.uk/id/local-authority/30UE,Homelessness,1075,EARL - Communities,Grants - Tenant Participation,40142,Grants and Subscriptions,5031,,18/10/2023,0185906,500.00,Revenue,Nicholas J Roden,87102
Chorley Borough Council,http://statistics.data.gov.uk/id/local-authority/30UE,Service Management & Support,1009,CUST - Customer & Digital,Supplies-Grounds Maintenance,40025,"Equipment, Furniture & Materia",5023,"As per quotation from NAME REDACTED, Duplex x 189, Cleaner x 10, Carriage charge",11/10/2023,0185117,"19,347.75",Revenue,Nomix Enviro Ltd,82223
Chorley Borough Council,http://statistics.data.gov.uk/id/local-authority/30UE,Planning Policy,1092,PLAN - Planning & Development,General Subscriptions,40146,Grants and Subscriptions,5031,Full membership to the Northern Housing Consortium for the period 01/04/23 to 31/03/24.,04/10/2023,0185221,990.00,Revenue,Northern Housing Consortium Ltd,17220
Chorley Borough Council,http://statistics.data.gov.uk/id/local-authority/30UE,Service Management & Support,1009,CUST - Customer & Digital,Supplies-Grounds Maintenance,40025,"Equipment, Furniture & Materia",5023,"as per Brush Quote 23,363",11/10/2023,0185600,672.25,Revenue,Northern Municipal Spares Ltd,17752
Chorley Borough Council,http://statistics.data.gov.uk/id/local-authority/30UE,Central Support Services,1009,CUST - Customer & Digital,Hire Of Vehicles and Plant,30028,Contrct Hire & Operating Lease,5018,Vehicle hire: 3.5t Luton Van with tail-lift (April 2023- March 2024) Current Reg: VIN REDACTED,04/10/2023,0185325,766.08,Revenue,Northgate Vehicle Hire (NW) Ltd,17360
Chorley Borough Council,http://statistics.data.gov.uk/id/local-authority/30UE,Tourism,1039,GOVN - Policy & Governance,Tools & Equipment - Hire,40004,"Equipment, Furniture & Materia",5023,"Chorley Flower Show 2023 ,  1x 3+1 event trailer @ 550,  2x 4+2 event trailer @ 600,  18x chemical portable toilets @ 60, �",18/10/2023,0185603,"5,435.00",Revenue,Northwest Portables,74432
Chorley Borough Council,http://statistics.data.gov.uk/id/local-authority/30UE,Business Support,1095,GROW - Commercial Services,Electricity,20013,Energy Costs,5006,ADDRESS REDACTED,04/10/2023,0185343,631.79,Revenue,Npower Commercial Gas,16814
Chorley Borough Council,http://statistics.data.gov.uk/id/local-authority/30UE,Homelessness,1075,GROW - Commercial Services,Electricity,20013,Energy Costs,5006,"HD460035, 01 Jul 23 - 31 Jul 23",11/10/2023,0185427,508.79,Revenue,Npower Commercial Gas,16814
Chorley Borough Council,http://statistics.data.gov.uk/id/local-authority/30UE,Business Support,1095,GROW - Commercial Services,Electricity,20013,Energy Costs,5006,"HD46222F, 01 Jul 23 - 31 Jul 23",11/10/2023,0185431,"1,086.30",Revenue,Npower Commercial Gas,16814
Chorley Borough Council,http://statistics.data.gov.uk/id/local-authority/30UE,Parking Services,1066,GROW - Commercial Services,Electricity,20013,Energy Costs,5006,"HD46222S, 01 Jul 23 - 31 Jul 23",11/10/2023,0185434,"1,192.60",Revenue,Npower Commercial Gas,16814
Chorley Borough Council,http://statistics.data.gov.uk/id/local-authority/30UE,Parking Services,1066,GROW - Commercial Services,Electricity,20013,Energy Costs,5006,"HD46222T, 01 Jul 23 - 31 Jul 23",11/10/2023,0185435,758.33,Revenue,Npower Commercial Gas,16814
Chorley Borough Council,http://statistics.data.gov.uk/id/local-authority/30UE,Business Support,1095,GROW - Commercial Services,Electricity,20013,Energy Costs,5006,"HD46222X, 01 Jul 23 - 31 Jul 23",11/10/2023,0185440,874.19,Revenue,Npower Commercial Gas,16814
Chorley Borough Council,http://statistics.data.gov.uk/id/local-authority/30UE,Democratic Represent and  Mgnt,1007,GROW - Commercial Services,Electricity,20013,Energy Costs,5006,"A0010276409, 01 Jul 23 - 31 Jul 23",11/10/2023,0185445,555.83,Revenue,Npower Commercial Gas,16814
Chorley Borough Council,http://statistics.data.gov.uk/id/local-authority/30UE,Recreation & Sport,1037,GROW - Commercial Services,Electricity,20013,Energy Costs,5006,"A0010276408, 01 Jul 23 - 31 Jul 23",11/10/2023,0185446,"9,671.87",Revenue,Npower Commercial Gas,16814
Chorley Borough Council,http://statistics.data.gov.uk/id/local-authority/30UE,Parking Services,1066,GROW - Commercial Services,Electricity,20013,Energy Costs,5006,"HD46222Q, 01 Jul 23 - 31 Jul 23",11/10/2023,0185448,"4,598.96",Revenue,Npower Commercial Gas,16814
Chorley Borough Council,http://statistics.data.gov.uk/id/local-authority/30UE,Democratic Represent and  Mgnt,1007,GROW - Commercial Services,Electricity,20013,Energy Costs,5006,Astley Farm House,11/10/2023,0185481,678.58,Revenue,Npower Commercial Gas,16814
Chorley Borough Council,http://statistics.data.gov.uk/id/local-authority/30UE,Democratic Represent and  Mgnt,1007,GROW - Commercial Services,Electricity,20013,Energy Costs,5006,Astley Hall coach house,11/10/2023,0185489,"3,117.29",Revenue,Npower Commercial Gas,16814
Chorley Borough Council,http://statistics.data.gov.uk/id/local-authority/30UE,Democratic Represent and  Mgnt,1007,GROW - Commercial Services,Electricity,20013,Energy Costs,5006,Asltey PArk Pavillion,11/10/2023,0185491,809.32,Revenue,Npower Commercial Gas,16814
Chorley Borough Council,http://statistics.data.gov.uk/id/local-authority/30UE,Homelessness,1075,GROW - Commercial Services,Electricity,20013,Energy Costs,5006,Cotswold House Communal Rooms,11/10/2023,0185492,"1,210.41",Revenue,Npower Commercial Gas,16814
Chorley Borough Council,http://statistics.data.gov.uk/id/local-authority/30UE,Democratic Represent and  Mgnt,1007,GROW - Commercial Services,Electricity,20013,Energy Costs,5006,"HD460007, 01 Jun 23 - 30 Jun 23",11/10/2023,0185496,679.54,Revenue,Npower Commercial Gas,16814
Chorley Borough Council,http://statistics.data.gov.uk/id/local-authority/30UE,Democratic Represent and  Mgnt,1007,GROW - Commercial Services,Electricity,20013,Energy Costs,5006,"HD460019, 01 Jun 23 - 30 Jun 23",11/10/2023,0185504,"2,770.05",Revenue,Npower Commercial Gas,16814
Chorley Borough Council,http://statistics.data.gov.uk/id/local-authority/30UE,Democratic Represent and  Mgnt,1007,GROW - Commercial Services,Electricity,20013,Energy Costs,5006,"HD460025, 01 Jun 23 - 30 Jun 23",11/10/2023,0185508,761.92,Revenue,Npower Commercial Gas,16814
Chorley Borough Council,http://statistics.data.gov.uk/id/local-authority/30UE,Homelessness,1075,GROW - Commercial Services,Electricity,20013,Energy Costs,5006,"HD460034, 01 Jun 23 - 30 Jun 23",11/10/2023,0185510,"1,252.53",Revenue,Npower Commercial Gas,16814
Chorley Borough Council,http://statistics.data.gov.uk/id/local-authority/30UE,Homelessness,1075,GROW - Commercial Services,Electricity,20013,Energy Costs,5006,"HD460035, 01 Jun 23 - 30 Jun 23",11/10/2023,0185511,534.68,Revenue,Npower Commercial Gas,16814
Chorley Borough Council,http://statistics.data.gov.uk/id/local-authority/30UE,Business Support,1095,GROW - Commercial Services,Electricity,20013,Energy Costs,5006,"HD46222F, 01 Jun 23 - 30 Jun 23",11/10/2023,0185514,"1,172.69",Revenue,Npower Commercial Gas,16814
Chorley Borough Council,http://statistics.data.gov.uk/id/local-authority/30UE,Parking Services,1066,GROW - Commercial Services,Electricity,20013,Energy Costs,5006,"HD46222Q, 01 Jun 23 - 30 Jun 23",11/10/2023,0185518,"4,071.29",Revenue,Npower Commercial Gas,16814
Chorley Borough Council,http://statistics.data.gov.uk/id/local-authority/30UE,Parking Services,1066,GROW - Commercial Services,Electricity,20013,Energy Costs,5006,"HD46222S, 01 Jun 23 - 30 Jun 23",11/10/2023,0185519,"1,164.49",Revenue,Npower Commercial Gas,16814
Chorley Borough Council,http://statistics.data.gov.uk/id/local-authority/30UE,Parking Services,1066,GROW - Commercial Services,Electricity,20013,Energy Costs,5006,"HD46222T, 01 Jun 23 - 30 Jun 23",11/10/2023,0185520,683.12,Revenue,Npower Commercial Gas,16814
Chorley Borough Council,http://statistics.data.gov.uk/id/local-authority/30UE,Business Support,1095,GROW - Commercial Services,Electricity,20013,Energy Costs,5006,"HD46222X, 01 Jun 23 - 30 Jun 23",11/10/2023,0185525,793.39,Revenue,Npower Commercial Gas,16814
Chorley Borough Council,http://statistics.data.gov.uk/id/local-authority/30UE,Recreation & Sport,1037,GROW - Commercial Services,Electricity,20013,Energy Costs,5006,"A0010276408, 01 Jun 23 - 30 Jun 23",11/10/2023,0185530,"8,151.09",Revenue,Npower Commercial Gas,16814
Chorley Borough Council,http://statistics.data.gov.uk/id/local-authority/30UE,Democratic Represent and  Mgnt,1007,GROW - Commercial Services,Electricity,20013,Energy Costs,5006,"A0010276409, 01 Jun 23 - 30 Jun 23",11/10/2023,0185531,737.33,Revenue,Npower Commercial Gas,16814
Chorley Borough Council,http://statistics.data.gov.uk/id/local-authority/30UE,Democratic Represent and  Mgnt,1007,GROW - Commercial Services,Electricity,20013,Energy Costs,5006,Astley Park Pavillion,11/10/2023,0185576,954.90,Revenue,Npower Commercial Gas,16814
Chorley Borough Council,http://statistics.data.gov.uk/id/local-authority/30UE,Business Support,1095,GROW - Commercial Services,Electricity,20013,Energy Costs,5006,Landlords communal area - Market walk,11/10/2023,0185577,"1,356.73",Revenue,Npower Commercial Gas,16814
Chorley Borough Council,http://statistics.data.gov.uk/id/local-authority/30UE,Parking Services,1066,GROW - Commercial Services,Electricity,20013,Energy Costs,5006,Oak House Car Park,11/10/2023,0185578,"1,310.46",Revenue,Npower Commercial Gas,16814
Chorley Borough Council,http://statistics.data.gov.uk/id/local-authority/30UE,Parking Services,1066,GROW - Commercial Services,Electricity,20013,Energy Costs,5006,Friday Street,11/10/2023,0185579,614.92,Revenue,Npower Commercial Gas,16814
Chorley Borough Council,http://statistics.data.gov.uk/id/local-authority/30UE,Democratic Represent and  Mgnt,1007,GROW - Commercial Services,Electricity,20013,Energy Costs,5006,"A0010276409, 01 May 23 - 31 May 23",11/10/2023,0185641,"3,725.16",Revenue,Npower Commercial Gas,16814
Chorley Borough Council,http://statistics.data.gov.uk/id/local-authority/30UE,Business Support,1095,GROW - Commercial Services,Electricity,20013,Energy Costs,5006,"HD46222X, 01 Dec 21 - 31 Dec 21",11/10/2023,0185644,552.50,Revenue,Npower Commercial Gas,16814
Chorley Borough Council,http://statistics.data.gov.uk/id/local-authority/30UE,Business Support,1095,GROW - Commercial Services,Electricity,20013,Energy Costs,5006,"HD46222X, 01 Jan 22 - 31 Jan 22",11/10/2023,0185645,504.17,Revenue,Npower Commercial Gas,16814
Chorley Borough Council,http://statistics.data.gov.uk/id/local-authority/30UE,Business Support,1095,GROW - Commercial Services,Electricity,20013,Energy Costs,5006,"HD46222X, 01 Apr 22 - 30 Apr22",11/10/2023,0185648,738.29,Revenue,Npower Commercial Gas,16814
Chorley Borough Council,http://statistics.data.gov.uk/id/local-authority/30UE,Business Support,1095,GROW - Commercial Services,Electricity,20013,Energy Costs,5006,"HD46222X, 01 May 22 - 31 May 22",11/10/2023,0185649,714.99,Revenue,Npower Commercial Gas,16814
Chorley Borough Council,http://statistics.data.gov.uk/id/local-authority/30UE,Business Support,1095,GROW - Commercial Services,Electricity,20013,Energy Costs,5006,"HD46222X, 01 Jun 22 - 30 Jun 22",11/10/2023,0185650,582.54,Revenue,Npower Commercial Gas,16814
Chorley Borough Council,http://statistics.data.gov.uk/id/local-authority/30UE,Business Support,1095,GROW - Commercial Services,Electricity,20013,Energy Costs,5006,"HD46222X, 01 Jul 22 - 31 Jul 22",11/10/2023,0185651,627.07,Revenue,Npower Commercial Gas,16814
Chorley Borough Council,http://statistics.data.gov.uk/id/local-authority/30UE,Business Support,1095,GROW - Commercial Services,Electricity,20013,Energy Costs,5006,"HD46222X, 01 Sep 22 - 30 Sep 22",11/10/2023,0185652,688.67,Revenue,Npower Commercial Gas,16814
Chorley Borough Council,http://statistics.data.gov.uk/id/local-authority/30UE,Business Support,1095,GROW - Commercial Services,Electricity,20013,Energy Costs,5006,"HD46222X, 01 Oct 22 - 31 Oct 22",11/10/2023,0185653,794.06,Revenue,Npower Commercial Gas,16814
Chorley Borough Council,http://statistics.data.gov.uk/id/local-authority/30UE,Business Support,1095,GROW - Commercial Services,Electricity,20013,Energy Costs,5006,"HD222X, 01 Aug 22 - 31 Aug 22",11/10/2023,0185654,629.49,Revenue,Npower Commercial Gas,16814
Chorley Borough Council,http://statistics.data.gov.uk/id/local-authority/30UE,Business Support,1095,GROW - Commercial Services,Electricity,20013,Energy Costs,5006,"HD46222X, 01 Nov 22 - 30 Nov 22",11/10/2023,0185655,857.14,Revenue,Npower Commercial Gas,16814
Chorley Borough Council,http://statistics.data.gov.uk/id/local-authority/30UE,Business Support,1095,GROW - Commercial Services,Electricity,20013,Energy Costs,5006,"HD46222X, 01 Dec 22 - 31 Dec 22",11/10/2023,0185656,"1,116.33",Revenue,Npower Commercial Gas,16814
Chorley Borough Council,http://statistics.data.gov.uk/id/local-authority/30UE,Business Support,1095,GROW - Commercial Services,Electricity,20013,Energy Costs,5006,"HD46222X, 01 Jan 23 - 31 Jan 23",11/10/2023,0185657,910.35,Revenue,Npower Commercial Gas,16814
Chorley Borough Council,http://statistics.data.gov.uk/id/local-authority/30UE,Business Support,1095,GROW - Commercial Services,Electricity,20013,Energy Costs,5006,"HD46222X, 01 Feb 23 - 28 Feb 23",11/10/2023,0185658,742.57,Revenue,Npower Commercial Gas,16814
Chorley Borough Council,http://statistics.data.gov.uk/id/local-authority/30UE,Business Support,1095,GROW - Commercial Services,Electricity,20013,Energy Costs,5006,"HD46222X, 01 Mar 23 - 31 Mar 23",11/10/2023,0185659,790.75,Revenue,Npower Commercial Gas,16814
Chorley Borough Council,http://statistics.data.gov.uk/id/local-authority/30UE,Business Support,1095,GROW - Commercial Services,Electricity,20013,Energy Costs,5006,"HD46222X, 01 Apr 23 - 30 Apr 23",11/10/2023,0185660,895.23,Revenue,Npower Commercial Gas,16814
Chorley Borough Council,http://statistics.data.gov.uk/id/local-authority/30UE,Business Support,1095,GROW - Commercial Services,Electricity,20013,Energy Costs,5006,"HD46222X, 01 May 23 - 31 May 23",11/10/2023,0185661,851.89,Revenue,Npower Commercial Gas,16814
Chorley Borough Council,http://statistics.data.gov.uk/id/local-authority/30UE,Business Support,1095,GROW - Commercial Services,Electricity,20013,Energy Costs,5006,"A0010271338, 01 Nov 22 - 30 Nov 22",11/10/2023,0185673,507.42,Revenue,Npower Commercial Gas,16814
Chorley Borough Council,http://statistics.data.gov.uk/id/local-authority/30UE,Parking Services,1066,GROW - Commercial Services,Electricity,20013,Energy Costs,5006,"HD46222Q, 01 Feb 23 - 28 Feb 23",11/10/2023,0185697,"2,857.92",Revenue,Npower Commercial Gas,16814
Chorley Borough Council,http://statistics.data.gov.uk/id/local-authority/30UE,Democratic Represent and  Mgnt,1007,GROW - Commercial Services,Electricity,20013,Energy Costs,5006,"A0010270434, 01 Feb 23 - 28 Feb 23",11/10/2023,0185699,523.57,Revenue,Npower Commercial Gas,16814
Chorley Borough Council,http://statistics.data.gov.uk/id/local-authority/30UE,Homelessness,1075,GROW - Commercial Services,Electricity,20013,Energy Costs,5006,"HD460034, 01 Jan 23 - 31 Jan 23",11/10/2023,0185700,938.76,Revenue,Npower Commercial Gas,16814
Chorley Borough Council,http://statistics.data.gov.uk/id/local-authority/30UE,Homelessness,1075,GROW - Commercial Services,Electricity,20013,Energy Costs,5006,"HD460034, 01 Feb 23 - 28 Feb 233",11/10/2023,0185702,"1,423.86",Revenue,Npower Commercial Gas,16814
Chorley Borough Council,http://statistics.data.gov.uk/id/local-authority/30UE,Democratic Represent and  Mgnt,1007,GROW - Commercial Services,Electricity,20013,Energy Costs,5006,"HD460019, 01 Feb 23 - 28 Feb 23",11/10/2023,0185705,"2,025.73",Revenue,Npower Commercial Gas,16814
Chorley Borough Council,http://statistics.data.gov.uk/id/local-authority/30UE,Recreation & Sport,1037,GROW - Commercial Services,Electricity,20013,Energy Costs,5006,"A0010276408, 01 Feb 23 - 28 Feb 23",11/10/2023,0185706,"12,149.81",Revenue,Npower Commercial Gas,16814
Chorley Borough Council,http://statistics.data.gov.uk/id/local-authority/30UE,Homelessness,1075,GROW - Commercial Services,Electricity,20013,Energy Costs,5006,Cotswold House Two Storey Wing,11/10/2023,0185711,"1,086.61",Revenue,Npower Commercial Gas,16814
Chorley Borough Council,http://statistics.data.gov.uk/id/local-authority/30UE,Recreation & Sport,1037,GROW - Commercial Services,Electricity,20013,Energy Costs,5006,"A0010276408, 01 Oct 22 - 31 Oct 22",18/10/2023,0185806,"1,490.81",Revenue,Npower Commercial Gas,16814
Chorley Borough Council,http://statistics.data.gov.uk/id/local-authority/30UE,Democratic Represent and  Mgnt,1007,GROW - Commercial Services,Electricity,20013,Energy Costs,5006,"A0010276409, 01 Nov 22 - 30 Nov 22",18/10/2023,0185808,538.39,Revenue,Npower Commercial Gas,16814
Chorley Borough Council,http://statistics.data.gov.uk/id/local-authority/30UE,Recreation & Sport,1037,GROW - Commercial Services,Electricity,20013,Energy Costs,5006,"A0010276408, 01 Nov 22 - 30 Nov 22",18/10/2023,0185811,"15,589.30",Revenue,Npower Commercial Gas,16814
Chorley Borough Council,http://statistics.data.gov.uk/id/local-authority/30UE,Business Support,1095,GROW - Commercial Services,Electricity,20013,Energy Costs,5006,"HD46222F, 01 Dec 22 - 31 Dec 22",18/10/2023,0185828,"2,831.61",Revenue,Npower Commercial Gas,16814
Chorley Borough Council,http://statistics.data.gov.uk/id/local-authority/30UE,Democratic Represent and  Mgnt,1007,GROW - Commercial Services,Electricity,20013,Energy Costs,5006,"HD460019, 01 Dec 22 - 31 Dec 22",18/10/2023,0185829,"2,779.42",Revenue,Npower Commercial Gas,16814
Chorley Borough Council,http://statistics.data.gov.uk/id/local-authority/30UE,Recreation & Sport,1037,GROW - Commercial Services,Electricity,20013,Energy Costs,5006,"A0010276408, 01 Dec 22 - 31 Dec 22",18/10/2023,0185841,"20,486.38",Revenue,Npower Commercial Gas,16814
Chorley Borough Council,http://statistics.data.gov.uk/id/local-authority/30UE,Business Support,1095,GROW - Commercial Services,Electricity,20013,Energy Costs,5006,"HD46222F, 01 Oct 21 - 31 Oct 21",25/10/2023,0186108,872.64,Revenue,Npower Commercial Gas,16814
Chorley Borough Council,http://statistics.data.gov.uk/id/local-authority/30UE,Democratic Represent and  Mgnt,1007,GROW - Commercial Services,Electricity,20013,Energy Costs,5006,"HD460019, 01 Oct 22 - 31 Oct 22",25/10/2023,0186121,"2,678.10",Revenue,Npower Commercial Gas,16814
Chorley Borough Council,http://statistics.data.gov.uk/id/local-authority/30UE,Democratic Represent and  Mgnt,1007,GROW - Commercial Services,Electricity,20013,Energy Costs,5006,"HD460025, 01 Nov 22 - 30 Nov 22",25/10/2023,0186133,859.48,Revenue,Npower Commercial Gas,16814
Chorley Borough Council,http://statistics.data.gov.uk/id/local-authority/30UE,Homelessness,1075,GROW - Commercial Services,Electricity,20013,Energy Costs,5006,"HD460034, 01 Nov 22 - 30 Nov 22",25/10/2023,0186135,"1,206.47",Revenue,Npower Commercial Gas,16814
Chorley Borough Council,http://statistics.data.gov.uk/id/local-authority/30UE,Business Support,1095,GROW - Commercial Services,Electricity,20013,Energy Costs,5006,"HD46222F, 01 Nov 22 - 30 Nov 22",25/10/2023,0186138,"1,847.38",Revenue,Npower Commercial Gas,16814
Chorley Borough Council,http://statistics.data.gov.uk/id/local-authority/30UE,Parking Services,1066,GROW - Commercial Services,Electricity,20013,Energy Costs,5006,"HD46222T, 01 Nov 22 - 30 Nov 22",25/10/2023,0186142,755.60,Revenue,Npower Commercial Gas,16814
Chorley Borough Council,http://statistics.data.gov.uk/id/local-authority/30UE,Parking Services,1066,GROW - Commercial Services,Electricity,20013,Energy Costs,5006,"HD46222S, 01 Nov 22 - 30 Nov 22",25/10/2023,0186147,"1,382.53",Revenue,Npower Commercial Gas,16814
Chorley Borough Council,http://statistics.data.gov.uk/id/local-authority/30UE,Parking Services,1066,GROW - Commercial Services,Electricity,20013,Energy Costs,5006,"HD46222Q, 01 Nov 22 - 30 Nov 22",25/10/2023,0186149,"2,914.65",Revenue,Npower Commercial Gas,16814
Chorley Borough Council,http://statistics.data.gov.uk/id/local-authority/30UE,Democratic Represent and  Mgnt,1007,GROW - Commercial Services,Electricity,20013,Energy Costs,5006,"HD460019, 01 Nov 22 - 30 Nov 22",25/10/2023,0186151,"2,680.28",Revenue,Npower Commercial Gas,16814
Chorley Borough Council,http://statistics.data.gov.uk/id/local-authority/30UE,Homelessness,1075,GROW - Commercial Services,Electricity,20013,Energy Costs,5006,"HD460035, 01 Nov 22 - 30 Nov 22",25/10/2023,0186152,695.18,Revenue,Npower Commercial Gas,16814
Chorley Borough Council,http://statistics.data.gov.uk/id/local-authority/30UE,Democratic Represent and  Mgnt,1007,GROW - Commercial Services,Electricity,20013,Energy Costs,5006,"HD460019, 01 Sep 21 - 30 Sep 21",25/10/2023,0186165,"1,314.50",Revenue,Npower Commercial Gas,16814
Chorley Borough Council,http://statistics.data.gov.uk/id/local-authority/30UE,Business Support,1095,GROW - Commercial Services,Electricity,20013,Energy Costs,5006,"HD46222F, 01 Sep 21 - 30 Sep 21",25/10/2023,0186174,680.05,Revenue,Npower Commercial Gas,16814
Chorley Borough Council,http://statistics.data.gov.uk/id/local-authority/30UE,Democratic Represent and  Mgnt,1007,GROW - Commercial Services,Electricity,20013,Energy Costs,5006,"HD460019, 01 Oct 21 - 31 Oct 21",25/10/2023,0186187,"1,492.53",Revenue,Npower Commercial Gas,16814
Chorley Borough Council,http://statistics.data.gov.uk/id/local-authority/30UE,Unapportionable Central OHeads,1009,GROW - Commercial Services,General Repairs - Reactive,20004,Repairs Maintenance & Alts,5005,Decoration at the Town Hall for works as discussed on site between building surveyor and contractor.,25/10/2023,0185611,"2,398.00",Revenue,Optimum commercial interiors,87262
Chorley Borough Council,http://statistics.data.gov.uk/id/local-authority/30UE,Unapportionable Central OHeads,1009,GROW - Commercial Services,General Repairs - Reactive,20004,Repairs Maintenance & Alts,5005,Supply scaffolding and decorate areas in Lancastrian Suite as discussed and agreed on site visit.,25/10/2023,0185977,"26,990.00",Revenue,Optimum commercial interiors,87262
Chorley Borough Council,http://statistics.data.gov.uk/id/local-authority/30UE,Business Support,1095,GROW - Commercial Services,Electricity,20013,Energy Costs,5006,"1466444, 24 Aug 23 - 24 Sep 23",04/10/2023,0185224,514.01,Revenue,Opus Energy Ltd,65093
Chorley Borough Council,http://statistics.data.gov.uk/id/local-authority/30UE,Tourism,1039,GOVN - Policy & Governance,Professional Fees,40063,Services,5027,"Chorley Flower Show 2023 , Friday 28 - Sunday 30 July , Oak Swill Basket Demonstrations , 3 days plus diesel - 635",18/10/2023,0185383,635.00,Revenue,Owen Jones,76956
Chorley Borough Council,http://statistics.data.gov.uk/id/local-authority/30UE,Parking Services,1066,GROW - Commercial Services,Printing,40043,"Printing, Stationery & General",5026,"Please supply stock tickets (for all car parks except Flat Iron & Portland St) , , Supply 20 rolls @ 3000 tickets per roll, 27.0",11/10/2023,0185267,548.60,Revenue,Paperwork (UK) Limited,18296
Chorley Borough Council,http://statistics.data.gov.uk/id/local-authority/30UE,Business Support,1095,GROW - Commercial Services,Cleaning Materials,40019,"Equipment, Furniture & Materia",5023,CREDIT 119626 to match off invoice was already taken on 13/9/23,11/10/2023,0183349,926.24,Revenue,Pattersons Holdings (Bristol),77537
Chorley Borough Council,http://statistics.data.gov.uk/id/local-authority/30UE,Business Support,1095,GROW - Commercial Services,Cleaning Materials,40019,"Equipment, Furniture & Materia",5023,"AA301 Mini Smart One Mini Toilet Rolls 2 ply, x 12 @ 45.37",18/10/2023,0185805,544.44,Revenue,Pattersons Holdings (Bristol),77537
Chorley Borough Council,http://statistics.data.gov.uk/id/local-authority/30UE,Tourism,1039,GOVN - Policy & Governance,Professional Fees,40063,Services,5027,"CHORLEY LIVE 2023, , HIRE OF MARKET STREET STAGE INCLUDING	TRANSPORT 900, , HIRE OF PORTLAND STREET STAGE 800, , FAZAKERLY ST S",18/10/2023,0185940,"5,150.00",Revenue,Paul K Sound & Vision,16607
Chorley Borough Council,http://statistics.data.gov.uk/id/local-authority/30UE,Corporate Management,1008,GOVN - Policy & Governance,Agency Staff,13000,Direct Employee Expenses,5001,Charges for Interim Deputy Chief Executive,18/10/2023,0185412,"9,440.00",Revenue,Penna Plc,77833
Chorley Borough Council,http://statistics.data.gov.uk/id/local-authority/30UE,Service Management & Support,1009,CUST - Customer & Digital,Supplies-Grounds Maintenance,40025,"Equipment, Furniture & Materia",5023,"Adblue IBC- 1000litres, Deposit 130 (refundable on return). , 1000 litres AdBlue @ 0.41p per litre , Gravity hose kit 129.99",11/10/2023,0185544,669.99,Revenue,Pilkington Oils,18075
Chorley Borough Council,http://statistics.data.gov.uk/id/local-authority/30UE,Central Support Services,1009,CUST - Customer & Digital,Consultants` Fees,40077,Services,5027,"Contract work to assist with planning enforcement, Contractor: NAME REDACTED Time period: 1 April 2023  31 March 2024",18/10/2023,0185382,"2,186.20",Revenue,Planning and PACE Solutions Ltd,82083
Chorley Borough Council,http://statistics.data.gov.uk/id/local-authority/30UE,Central Support Services,1009,CUST - Customer & Digital,Consultants` Fees,40077,Services,5027,Contract work to assist with planning enforcement Contractor: NAME REDACTED Time period: 1 April 2023  31 March 2024,25/10/2023,0186065,"1,440.50",Revenue,Planning and PACE Solutions Ltd,82083
Chorley Borough Council,http://statistics.data.gov.uk/id/local-authority/30UE,Precepts and Collection Fund,Precepts,GOVN - Policy & Governance,LPA Precept,02010,Precepts & Collection Fund,Precept,PCC council tax precept,09/10/2023,0184104,"953,889.00",Revenue,Police & Crime Commissioner,17438
Chorley Borough Council,http://statistics.data.gov.uk/id/local-authority/30UE,Precepts and Collection Fund,Precepts,GOVN - Policy & Governance,LPA Precept,02010,Precepts & Collection Fund,Precept,PCC Council tax precept,09/10/2023,0185315,"953,889.00",Revenue,Police & Crime Commissioner,17438
Chorley Borough Council,http://statistics.data.gov.uk/id/local-authority/30UE,Business Support,1095,GROW - Commercial Services,Tools & Equipment - Purchase,40003,"Equipment, Furniture & Materia",5023,"Poppy Signs - Quotation Number: AD18707/3, , The design, manufacture and installation of the following: , , PARKING SIGNS, Digita",25/10/2023,0183117,728.38,Revenue,Poppy Signs Ltd,21898
Chorley Borough Council,http://statistics.data.gov.uk/id/local-authority/30UE,Tourism,1039,GOVN - Policy & Governance,Safety Signs And Posters,40017,"Equipment, Furniture & Materia",5023,"Collect from Bengal Street, New print applied over the previous metal boards, Light block adhesive, matte laminate, Batch of 3 x ",18/10/2023,0185784,652.82,Revenue,Poppy Signs Ltd,21898
Chorley Borough Council,http://statistics.data.gov.uk/id/local-authority/30UE,Development Control,1091,PLAN - Planning & Development,Agency Staff,13000,Direct Employee Expenses,5001,"Planning consulting advice, including the consideration and determination of planning applications, Time period: 24 July 2023 - 3",11/10/2023,0185111,"1,710.00",Revenue,Power Planning Consulting Ltd,89435
Chorley Borough Council,http://statistics.data.gov.uk/id/local-authority/30UE,Development Control,1091,PLAN - Planning & Development,Agency Staff,13000,Direct Employee Expenses,5001,"Planning consulting advice, including the consideration and determination of planning applications, Time period: 24 July 2023 - 3",11/10/2023,0185347,"1,665.00",Revenue,Power Planning Consulting Ltd,89435
Chorley Borough Council,http://statistics.data.gov.uk/id/local-authority/30UE,Recreation & Sport,1037,GOVN - Policy & Governance,Performing Rights Society Fees,40148,Grants and Subscriptions,5031,"Music Licence for the Lancastrian at Chorley Town Hall from 06/10/22 to 05/04/23., Invoice SIN2387838",04/10/2023,0185100,"1,635.30",Revenue,PPL PRS Ltd,77455
Chorley Borough Council,http://statistics.data.gov.uk/id/local-authority/30UE,Capital,Capital,EARL - Communities,Grants,03002,Capital Expenditure,Capital,Handyperson service Q3 2023/24 payable from DFG budget,18/10/2023,0185803,"6,250.00",Capital,Preston Care and Repair,50018
Chorley Borough Council,http://statistics.data.gov.uk/id/local-authority/30UE,Elections,1012,GOVN - Policy & Governance,Printing,40043,"Printing, Stationery & General",5026,Borough by election ballot books,04/10/2023,0184925,"1,562.00",Revenue,Print Image Network,21171
Chorley Borough Council,http://statistics.data.gov.uk/id/local-authority/30UE,Other Short Term Creditors,,GOVN - Policy & Governance,General Balances,00100,Balance Sheet,Balance,Prudential - Sep 23 Monthly Deductions from payroll,11/10/2023,0185620,"1,550.00",Revenue,PRUDENTIAL,18178
Chorley Borough Council,http://statistics.data.gov.uk/id/local-authority/30UE,Other Short Term Creditors,,GOVN - Policy & Governance,General Balances,00100,Balance Sheet,Balance,Prudential AVC Wise - Sep 23 Monthly Deductions from payroll,11/10/2023,0185621,"11,335.61",Revenue,PRUDENTIAL,18178
Chorley Borough Council,http://statistics.data.gov.uk/id/local-authority/30UE,Interest Payable on Debt,1020,GOVN - Policy & Governance,Interest Payable,09009,Interest Payments,5067,interest,09/10/2023,0184103,"280,980.50",Revenue,Public Works Loans Board,21480
Chorley Borough Council,http://statistics.data.gov.uk/id/local-authority/30UE,Capital,Capital,PLAN - Planning & Development,Main Contractor,03007,Capital Expenditure,Capital,Construction of Changing Facility at King George V Playing Fields. Original contract value of 939165.78 minus 84950 invoiced and ,25/10/2023,0185994,"65,258.39",Capital,Pulse Design and Build Ltd,85602
Chorley Borough Council,http://statistics.data.gov.uk/id/local-authority/30UE,Unapportionable Central OHeads,1009,GOVN - Policy & Governance,Postages,40082,Communication and Computing,5028,Credifon account 315015,11/10/2023,0185296,"1,000.00",Revenue,Quadient UK Limited,20009
Chorley Borough Council,http://statistics.data.gov.uk/id/local-authority/30UE,Central Support Services,1009,EARL - Communities,Children's Activities,40188,Miscellaneous Expenses,5034,Provision of Chorley HAF programme summer 23 as per grant agreement,18/10/2023,0185037,"12,288.00",Revenue,Quality Sport Holiday Clubs Ltd,89304
Chorley Borough Council,http://statistics.data.gov.uk/id/local-authority/30UE,Culture & Heritage,1036,GOVN - Policy & Governance,Tools & Equipment - Maintenance,40005,"Equipment, Furniture & Materia",5023,"Work Description, 9 of, All Polished black granite posts, 12mm white band to 4 sides 50mm from top, Hole number inscribing on 1 -",25/10/2023,0185270,"1,800.00",Revenue,Rawcliffe`s Of Chorley Ltd,17993
Chorley Borough Council,http://statistics.data.gov.uk/id/local-authority/30UE,Central Support Services,1009,CUST - Customer & Digital,CCTV Camera Maintenance,40007,"Equipment, Furniture & Materia",5023,"30:1 1080p HD PTZ with IR, White Light and Wiper - Black x 2",04/10/2023,0184430,"3,086.72",Revenue,Redvision CCTV,86991
Chorley Borough Council,http://statistics.data.gov.uk/id/local-authority/30UE,Control Accounts,Control,GOVN - Policy & Governance,General Balances,00100,Balance Sheet,Balance,30-Aug-23,09/10/2023,0184346,522.00,Revenue,Reward Gateway (UK) Ltd,66814
Chorley Borough Council,http://statistics.data.gov.uk/id/local-authority/30UE,Central Support Services,1009,EARL - Communities,Training Allowance,14005,Direct Employee Expenses,5001,PWS Explained training,04/10/2023,0183420,"2,169.00",Revenue,RH Environmental Ltd,64885
Chorley Borough Council,http://statistics.data.gov.uk/id/local-authority/30UE,Homelessness,1075,EARL - Communities,Other Contributions,40145,Grants and Subscriptions,5031,"Boiler replacement, ADDRESS REDACTED",11/10/2023,0185610,"1,995.00",Revenue,Rhea Projects Ltd,77753
Chorley Borough Council,http://statistics.data.gov.uk/id/local-authority/30UE,Homelessness,1075,EARL - Communities,Other Contributions,40145,Grants and Subscriptions,5031,Boiler replacement and new TRV`S - ADDRESS REDACTED,18/10/2023,0185743,"2,120.00",Revenue,Rhea Projects Ltd,77753
Chorley Borough Council,http://statistics.data.gov.uk/id/local-authority/30UE,Homelessness,1075,EARL - Communities,Other Contributions,40145,Grants and Subscriptions,5031,Fire replacement - ADDRESS REDACTED,18/10/2023,0185804,"1,075.00",Revenue,Rhea Projects Ltd,77753
Chorley Borough Council,http://statistics.data.gov.uk/id/local-authority/30UE,Homelessness,1075,EARL - Communities,Other Contributions,40145,Grants and Subscriptions,5031,"ADDRESS REDACTED, Loft insulation",18/10/2023,0185850,648.00,Revenue,Rhea Projects Ltd,77753
Chorley Borough Council,http://statistics.data.gov.uk/id/local-authority/30UE,Homelessness,1075,EARL - Communities,Other Contributions,40145,Grants and Subscriptions,5031,"ADDRESS REDACTED, Loft insulation",18/10/2023,0185851,648.00,Revenue,Rhea Projects Ltd,77753
Chorley Borough Council,http://statistics.data.gov.uk/id/local-authority/30UE,Homelessness,1075,EARL - Communities,Other Contributions,40145,Grants and Subscriptions,5031,Boiler replacement - ADDRESS REDACTED,25/10/2023,0186100,"2,450.00",Revenue,Rhea Projects Ltd,77753
Chorley Borough Council,http://statistics.data.gov.uk/id/local-authority/30UE,Homelessness,1075,EARL - Communities,Grants - Tenant Participation,40142,Grants and Subscriptions,5031,,18/10/2023,0185889,500.00,Revenue,Richard Palin,85421
Chorley Borough Council,http://statistics.data.gov.uk/id/local-authority/30UE,Central Support Services,1009,CUST - Customer & Digital,Other Fees,40212,Miscellaneous Expenses,5034,Ongoing Ricoh machine rental costs shared Chorley/SRBC,25/10/2023,0185598,"6,539.71",Revenue,Ricoh UK Ltd,17126
Chorley Borough Council,http://statistics.data.gov.uk/id/local-authority/30UE,Capital,Capital,GROW - Commercial Services,Consultants Fees,03025,Capital Expenditure,Capital,"PM/QS + Building Surveyor professional services extension - Tatton Gardens Development, Chorley",04/10/2023,0181216,954.35,Capital,Rider Levett Bucknall,67527
Chorley Borough Council,http://statistics.data.gov.uk/id/local-authority/30UE,Capital,Capital,GROW - Commercial Services,Consultants Fees,03025,Capital Expenditure,Capital,"PM/QS + Building Surveyor professional services extension - Tatton Gardens Development, Chorley",04/10/2023,0184978,954.70,Capital,Rider Levett Bucknall,67527
Chorley Borough Council,http://statistics.data.gov.uk/id/local-authority/30UE,Business Support,1095,GROW - Commercial Services,Professional Fees,40063,Services,5027,Undertaking the remaining work to secure a lease renewal to Shoe Zone for a period of 5 years with effect from 1st October 2022 a,11/10/2023,0185538,"2,975.00",Revenue,Robert Pinkus & Co,19273
Chorley Borough Council,http://statistics.data.gov.uk/id/local-authority/30UE,Central Support Services,1009,EARL - Communities,External Contractor,40198,Miscellaneous Expenses,5034,"Provision of pest control services to include inspection, provision of advice, undertaking suitable and appropriate pest control ",11/10/2023,0185635,"15,743.31",Revenue,Rokill Limited,87244
Chorley Borough Council,http://statistics.data.gov.uk/id/local-authority/30UE,Capital,Capital,GROW - Commercial Services,Main Contractor,03007,Capital Expenditure,Capital,Strawberry Meadows - Euxton Lane Quote - QU3158 Supply and Install 2no BFT 4m Booms complete with LED light kits. Central island ,11/10/2023,0184642,"7,820.00",Capital,Secure Door Systems,87323
Chorley Borough Council,http://statistics.data.gov.uk/id/local-authority/30UE,Business Support,1095,GROW - Commercial Services,Security Service,40062,Services,5027,To provide concierge services at Primrose Gardens Extra Care Facility as outlined by NAME REDACTED 7 days a week. Hourly rate ,18/10/2023,0185348,"7,661.25",Revenue,Secure FM Ltd,86928
Chorley Borough Council,http://statistics.data.gov.uk/id/local-authority/30UE,Homelessness,1075,GROW - Commercial Services,Security Service,40062,Services,5027,"To provide site concierge services at Cotswold House temporary accommodation facility, hours as outlined , by NAME REDACTED",18/10/2023,0185350,"8,274.15",Revenue,Secure FM Ltd,86928
Chorley Borough Council,http://statistics.data.gov.uk/id/local-authority/30UE,Business Support,1095,GROW - Commercial Services,Security Service,40062,Services,5027,"To provide evening Site Security Services at Market Walk Shopping Centre from 5pm until midnight, 7 days a week. Hourly rate 12.",18/10/2023,0185351,"2,860.20",Revenue,Secure FM Ltd,86928
Chorley Borough Council,http://statistics.data.gov.uk/id/local-authority/30UE,Business Support,1095,GROW - Commercial Services,Security Service,40062,Services,5027,"To provide site concierge services at , Tatton Gardens Extra Care facility, , hours as outlined by NAME REDACTED. 7 days",18/10/2023,0185384,"7,674.87",Revenue,Secure FM Ltd,86928
Chorley Borough Council,http://statistics.data.gov.uk/id/local-authority/30UE,Central Support Services,1009,EARL - Communities,Misc Expenses,40200,Miscellaneous Expenses,5034,Adult Health and wellbeing grant,18/10/2023,0185151,650.00,Revenue,SharpDocsLtd,89582
Chorley Borough Council,http://statistics.data.gov.uk/id/local-authority/30UE,Central Support Services,1009,GOVN - Policy & Governance,UKSPF Funded Business Events,40258,Miscellaneous Expenses,5034,"Event Management & Organisation of Careers Event to held at Chorley Town Hall on Monday 9th October, as agreed with NAME REDACTED.",18/10/2023,0185109,"8,000.00",Revenue,Shout Network Limited,69551
Chorley Borough Council,http://statistics.data.gov.uk/id/local-authority/30UE,Central Support Services,1009,EARL - Communities,Misc Expenses,40200,Miscellaneous Expenses,5034,Delivery of food club in Clayton Brook,25/10/2023,0184297,"1,600.00",Revenue,St Vincent De Paul Society,89415
Chorley Borough Council,http://statistics.data.gov.uk/id/local-authority/30UE,Service Management & Support,1009,CUST - Customer & Digital,Diesel/Derv,30007,Direct Transport Costs,5016,"As per chest procurement , 7000 litres road diesel, 2500 litres gas oil",11/10/2023,0185013,"2,262.12",Revenue,Standard Fuel Oils,85167
Chorley Borough Council,http://statistics.data.gov.uk/id/local-authority/30UE,Service Management & Support,1009,CUST - Customer & Digital,Diesel/Derv,30007,Direct Transport Costs,5016,"As per chest procurement , 7000 litres road diesel, 2500 litres gas oil",11/10/2023,0185030,"9,207.10",Revenue,Standard Fuel Oils,85167
Chorley Borough Council,http://statistics.data.gov.uk/id/local-authority/30UE,Capital,Capital,EARL - Communities,Grants,03002,Capital Expenditure,Capital,ADDRESS REDACTED,04/10/2023,0184560,"6,806.00",Capital,Stannah Lift Services Ltd,80943
Chorley Borough Council,http://statistics.data.gov.uk/id/local-authority/30UE,Capital,Capital,EARL - Communities,Grants,03002,Capital Expenditure,Capital,ADDRESS REDACTED,04/10/2023,0184561,"2,957.00",Capital,Stannah Lift Services Ltd,80943
Chorley Borough Council,http://statistics.data.gov.uk/id/local-authority/30UE,Capital,Capital,EARL - Communities,Grants,03002,Capital Expenditure,Capital,ADDRESS REDACTED,04/10/2023,0184562,"3,435.00",Capital,Stannah Lift Services Ltd,80943
Chorley Borough Council,http://statistics.data.gov.uk/id/local-authority/30UE,Capital,Capital,EARL - Communities,Grants,03002,Capital Expenditure,Capital,"23/00173/CAG, ADDRESS REDACTED",18/10/2023,0185964,"5,562.00",Capital,Stannah Lift Services Ltd,80943
Chorley Borough Council,http://statistics.data.gov.uk/id/local-authority/30UE,Capital,Capital,EARL - Communities,Grants,03002,Capital Expenditure,Capital,23/00116/CAG,25/10/2023,0187440,"6,075.00",Capital,Stannah Lift Services Ltd,80943
Chorley Borough Council,http://statistics.data.gov.uk/id/local-authority/30UE,Homelessness,1075,EARL - Communities,Grants - Tenant Participation,40142,Grants and Subscriptions,5031,,18/10/2023,0185905,500.00,Revenue,Stephen Daniels,86923
Chorley Borough Council,http://statistics.data.gov.uk/id/local-authority/30UE,Capital,Capital,PLAN - Planning & Development,Main Contractor,03007,Capital Expenditure,Capital,Ground Investigation,11/10/2023,0185286,"4,605.00",Capital,Steve Wells Associates Ltd,77157
Chorley Borough Council,http://statistics.data.gov.uk/id/local-authority/30UE,Unapportionable Central OHeads,1009,GROW - Commercial Services,General Repairs - Reactive,20004,Repairs Maintenance & Alts,5005,Queens Rd Car Park Works as agreed with NAME REDACTED,25/10/2023,0185411,"2,909.50",Revenue,Street Civil Engineering Limited,76750
Chorley Borough Council,http://statistics.data.gov.uk/id/local-authority/30UE,Capital,Capital,EARL - Communities,Grants,03002,Capital Expenditure,Capital,22/00058/DFG,11/10/2023,0185318,"16,253.00",Capital,Stringfellow Bldg Cntrctrs Ltd,17893
Chorley Borough Council,http://statistics.data.gov.uk/id/local-authority/30UE,Capital,Capital,EARL - Communities,Grants,03002,Capital Expenditure,Capital,23/00058/CAG,25/10/2023,0187438,"7,195.00",Capital,Stringfellow Bldg Cntrctrs Ltd,17893
Chorley Borough Council,http://statistics.data.gov.uk/id/local-authority/30UE,Service Management & Support,1009,CUST - Customer & Digital,Refuse Collection,20037,Cleaning and Domestic Supplies,5012,Exchange 20 yard Street Sweepings Skip @ 82.26 each,25/10/2023,0185777,"1,052.48",Revenue,SUEZ R&R UK LTD,17615
Chorley Borough Council,http://statistics.data.gov.uk/id/local-authority/30UE,Service Management & Support,1009,CUST - Customer & Digital,Refuse Collection,20037,Cleaning and Domestic Supplies,5012,Exchange 35 yard General Waste Skip @ 101.86 each,25/10/2023,0185777,719.52,Revenue,SUEZ R&R UK LTD,17615
Chorley Borough Council,http://statistics.data.gov.uk/id/local-authority/30UE,Central Support Services,1009,EARL - Communities,Misc Expenses,40200,Miscellaneous Expenses,5034,Skip and driver hire and disposal of waste for Mawdesley clean up day Saturday 2nd September 2023,25/10/2023,0187475,829.44,Revenue,SUEZ R&R UK LTD,17615
Chorley Borough Council,http://statistics.data.gov.uk/id/local-authority/30UE,Homelessness,1075,EARL - Communities,Grants - Tenant Participation,40142,Grants and Subscriptions,5031,,18/10/2023,0185890,500.00,Revenue,Susan McGuigan,85422
Chorley Borough Council,http://statistics.data.gov.uk/id/local-authority/30UE,Central Support Services,1009,CUST - Customer & Digital,CCTV Camera Maintenance,40007,"Equipment, Furniture & Materia",5023,CCTV camera repairs,25/10/2023,0185779,"1,858.17",Revenue,Technology Solutions,72376
Chorley Borough Council,http://statistics.data.gov.uk/id/local-authority/30UE,Tourism,1039,GOVN - Policy & Governance,Professional Fees,40063,Services,5027,Plant creche at Flower Show,25/10/2023,0186067,500.00,Revenue,The Astley Walled Gardeners,70095
Chorley Borough Council,http://statistics.data.gov.uk/id/local-authority/30UE,Business Support,1095,GROW - Commercial Services,Legal Fees,40171,Miscellaneous Expenses,5034,"Provision of SIA Security Officers, September 2023",25/10/2023,0186204,"7,941.18",Revenue,The ExcluSec Group Ltd,78056
Chorley Borough Council,http://statistics.data.gov.uk/id/local-authority/30UE,Central Support Services,1009,CUST - Customer & Digital,Computer Equipment-Maintenance,40105,Communication and Computing,5028,Aps for Tatton,11/10/2023,0183448,"3,191.70",Revenue,The Networking People (NorthWest) Ltd T/a TNP Ltd,73446
Chorley Borough Council,http://statistics.data.gov.uk/id/local-authority/30UE,Central Support Services,1009,CUST - Customer & Digital,IT Software - Annual Licences,40101,Communication and Computing,5028,Chorley Satellite Site Connectivity.,04/10/2023,0184269,"1,438.61",Revenue,The Networking People (NorthWest) Ltd T/a TNP Ltd,73446
Chorley Borough Council,http://statistics.data.gov.uk/id/local-authority/30UE,Central Support Services,1009,CUST - Customer & Digital,Network Line Rental,40248,Communication and Computing,5028,"10G RO2 circuit: Chorley Town Hall , PR7 1DP to South Ribble Borough Council Civi - Annual Rental 25/08/2023 - 24/08/2024 (ONEA70",04/10/2023,0184510,"29,580.31",Revenue,The Networking People (NorthWest) Ltd T/a TNP Ltd,73446
Chorley Borough Council,http://statistics.data.gov.uk/id/local-authority/30UE,Central Support Services,1009,CUST - Customer & Digital,Supplies - Workshop,40246,"Equipment, Furniture & Materia",5023,Additional block of RMACs for Chorley and South Ribble,25/10/2023,0185772,"6,000.00",Revenue,The Networking People (NorthWest) Ltd T/a TNP Ltd,73446
Chorley Borough Council,http://statistics.data.gov.uk/id/local-authority/30UE,Homelessness,1075,EARL - Communities,Grants - Tenant Participation,40142,Grants and Subscriptions,5031,,18/10/2023,0185894,500.00,Revenue,Timothy Philips,85423
Chorley Borough Council,http://statistics.data.gov.uk/id/local-authority/30UE,Economic Development,1096,GROW - Commercial Services,Christmas Lights,40179,Miscellaneous Expenses,5034,"Town Centre Christmas Tree Display including lights and fitting service for Chorley Town Centre, 2023/24 season 182 trees @ 74.0",18/10/2023,0185240,"12,803.02",Revenue,Town Centre Trees,57436
Chorley Borough Council,http://statistics.data.gov.uk/id/local-authority/30UE,Development Control,1091,PLAN - Planning & Development,Professional Fees,40063,Services,5027,"Fee Proposal � Independent Viability Assessment for Cowling Mill, Cowling Brow, Chorley",18/10/2023,0185366,"3,000.00",Revenue,Trebbi Continuum,77723
Chorley Borough Council,http://statistics.data.gov.uk/id/local-authority/30UE,Service Management & Support,1009,CUST - Customer & Digital,Grounds Maintenance Contractor,20043,Grounds Maintenance Costs,5013,ADDRESS REDACTED - remove failed Willow and prune others,11/10/2023,0185229,840.00,Revenue,Treescape North West Ltd,17688
Chorley Borough Council,http://statistics.data.gov.uk/id/local-authority/30UE,Service Management & Support,1009,CUST - Customer & Digital,Grounds Maintenance Contractor,20043,Grounds Maintenance Costs,5013,ADDRESS REDACTED - Reduce Willows and prune overhang,11/10/2023,0185494,840.00,Revenue,Treescape North West Ltd,17688
Chorley Borough Council,http://statistics.data.gov.uk/id/local-authority/30UE,Service Management & Support,1009,CUST - Customer & Digital,Grounds Maintenance Contractor,20043,Grounds Maintenance Costs,5013,ADDRESS REDACTED - Prune Sycamore and sever Ivy on other trees,11/10/2023,0185535,840.00,Revenue,Treescape North West Ltd,17688
Chorley Borough Council,http://statistics.data.gov.uk/id/local-authority/30UE,Service Management & Support,1009,CUST - Customer & Digital,Grounds Maintenance Contractor,20043,Grounds Maintenance Costs,5013,A6/Miles Standish Way - Monolith mature Sycamore,11/10/2023,0185537,840.00,Revenue,Treescape North West Ltd,17688
Chorley Borough Council,http://statistics.data.gov.uk/id/local-authority/30UE,Service Management & Support,1009,CUST - Customer & Digital,Grounds Maintenance Contractor,20043,Grounds Maintenance Costs,5013,Tree safety work in Chorley Cemetery including felling of 3 Sycamore trees and removing the deadwood from one Horse Chestnut.,25/10/2023,0185555,"1,680.00",Revenue,Treescape North West Ltd,17688
Chorley Borough Council,http://statistics.data.gov.uk/id/local-authority/30UE,Service Management & Support,1009,CUST - Customer & Digital,Grounds Maintenance Contractor,20043,Grounds Maintenance Costs,5013,Emergency felling of one partially failed Silver Birch and emergency felling of a partially failed mature Sycamore,25/10/2023,0185556,"1,680.00",Revenue,Treescape North West Ltd,17688
Chorley Borough Council,http://statistics.data.gov.uk/id/local-authority/30UE,Service Management & Support,1009,CUST - Customer & Digital,External Contractor,40198,Miscellaneous Expenses,5034,"Litterbin Refurb @ 150 per bin, Quantity x 10",11/10/2023,0185554,"1,500.00",Revenue,UK CONTAINER MAINTENANCE LTD,89476
Chorley Borough Council,http://statistics.data.gov.uk/id/local-authority/30UE,Unapportionable Central OHeads,1009,GOVN - Policy & Governance,Misc Expenses,40200,Miscellaneous Expenses,5034,01-Oct-23,18/10/2023,0185371,"1,449.00",Revenue,UK Healthcare (BDHSC),17241
Chorley Borough Council,http://statistics.data.gov.uk/id/local-authority/30UE,Tourism,1039,GOVN - Policy & Governance,Professional Fees,40063,Services,5027,"Security team for Chorley Live event, , 14 x SIA Security, Friday 6th October 2023, Times 6pm - 11pm (5 hours), 18.50 per hour �",25/10/2023,0186101,"2,590.00",Revenue,UK Media & Events Security Limited,85628
Chorley Borough Council,http://statistics.data.gov.uk/id/local-authority/30UE,Control Accounts,Control,GOVN - Policy & Governance,General Balances,00100,Balance Sheet,Balance,Unify - Sep 23 Monthly Deductions from payroll,11/10/2023,0185615,905.00,Revenue,Unify Credit Union Ltd,55509
Chorley Borough Council,http://statistics.data.gov.uk/id/local-authority/30UE,Culture & Heritage,1036,GOVN - Policy & Governance,Conservation Of Exhibits,40059,Services,5027,"Paint sampling and analysis at Astley Hall Art Gallery., Costs:, Prelims.  65.00, Site Visit  520.00, Travel, fuel and subsiste",25/10/2023,0185773,"1,970.00",Revenue,University of Lincoln,89367
Chorley Borough Council,http://statistics.data.gov.uk/id/local-authority/30UE,Unapportionable Central OHeads,1009,GROW - Commercial Services,Training Course Fees,17010,Indirect Employee Expenses,5002,Masters Degree Tuition Fees for 2023 / 24,18/10/2023,0185422,"3,030.00",Revenue,University Of Salford,16234
Chorley Borough Council,http://statistics.data.gov.uk/id/local-authority/30UE,Capital,Capital,EARL - Communities,Grants,03002,Capital Expenditure,Capital,"22/00028/CAG, ADDRESS REDACTED",18/10/2023,0185972,"5,855.00",Capital,UPS Building and Maintenance Ltd,76235
Chorley Borough Council,http://statistics.data.gov.uk/id/local-authority/30UE,Development Control,1091,PLAN - Planning & Development,Agency Staff,13000,Direct Employee Expenses,5001,"Contract work to assist with planning application processing, Contractor: NAME REDACTED, Time period: 1 April 2023  31 December 2",25/10/2023,0184673,"1,898.00",Revenue,Vivid Resourcing Ltd,76938
Chorley Borough Council,http://statistics.data.gov.uk/id/local-authority/30UE,Central Support Services,1009,GROW - Commercial Services,Agency Staff,13000,Direct Employee Expenses,5001,Estates surveyor fees for NAME REDACTED as agreed with NAME REDACTED,18/10/2023,0184774,"3,730.65",Revenue,Vivid Resourcing Ltd,76938
Chorley Borough Council,http://statistics.data.gov.uk/id/local-authority/30UE,Central Support Services,1009,GROW - Commercial Services,Agency Staff,13000,Direct Employee Expenses,5001,Estates surveyor fees for NAME REDACTED as agreed with NAME REDACTED,18/10/2023,0184971,"2,021.25",Revenue,Vivid Resourcing Ltd,76938
Chorley Borough Council,http://statistics.data.gov.uk/id/local-authority/30UE,Central Support Services,1009,GROW - Commercial Services,Agency Staff,13000,Direct Employee Expenses,5001,Agency Fees for Estate Surveyor NAME REDACTED - 12mths,11/10/2023,0184974,898.56,Revenue,Vivid Resourcing Ltd,76938
Chorley Borough Council,http://statistics.data.gov.uk/id/local-authority/30UE,Central Support Services,1009,GROW - Commercial Services,Agency Staff,13000,Direct Employee Expenses,5001,Estates surveyor fees for NAME REDACTED as agreed with NAME REDACTED,18/10/2023,0185018,"1,155.00",Revenue,Vivid Resourcing Ltd,76938
Chorley Borough Council,http://statistics.data.gov.uk/id/local-authority/30UE,Central Support Services,1009,GROW - Commercial Services,Agency Staff,13000,Direct Employee Expenses,5001,Agency Fees for Estate Surveyor NAME REDACTED - 12mths,11/10/2023,0185216,861.12,Revenue,Vivid Resourcing Ltd,76938
Chorley Borough Council,http://statistics.data.gov.uk/id/local-authority/30UE,Central Support Services,1009,GROW - Commercial Services,Agency Staff,13000,Direct Employee Expenses,5001,Estates surveyor fees for NAME REDACTED as agreed with NAME REDACTED,18/10/2023,0185536,"3,286.25",Revenue,Vivid Resourcing Ltd,76938
Chorley Borough Council,http://statistics.data.gov.uk/id/local-authority/30UE,Central Support Services,1009,CUST - Customer & Digital,Computer Equipment - Security,40106,Communication and Computing,5028,"UK13114295, 01 Apr 23 - 30 Jun 23",18/10/2023,0185686,980.86,Revenue,Vodafone Ltd,60180
Chorley Borough Council,http://statistics.data.gov.uk/id/local-authority/30UE,Central Support Services,1009,CUST - Customer & Digital,Computer Equipment - Security,40106,Communication and Computing,5028,"UK13114295, 01 Oct 22 - 31 Dec 22",18/10/2023,0185687,980.86,Revenue,Vodafone Ltd,60180
Chorley Borough Council,http://statistics.data.gov.uk/id/local-authority/30UE,Central Support Services,1009,CUST - Customer & Digital,Computer Equipment - Security,40106,Communication and Computing,5028,"UK13114295, 01 Jul 23 - 30 Sep 23",18/10/2023,0185688,980.86,Revenue,Vodafone Ltd,60180
Chorley Borough Council,http://statistics.data.gov.uk/id/local-authority/30UE,Central Support Services,1009,CUST - Customer & Digital,Computer Equipment - Security,40106,Communication and Computing,5028,"UK13114295, 01 Jan 23 - 31 Mar 23",18/10/2023,0185689,980.86,Revenue,Vodafone Ltd,60180
Chorley Borough Council,http://statistics.data.gov.uk/id/local-authority/30UE,Unapportionable Central OHeads,1009,GROW - Commercial Services,General Repairs - Reactive,20004,Repairs Maintenance & Alts,5005,Reactive Electrical Repair Works @ Community Centres,04/10/2023,0184257,"2,073.81",Revenue,Walker Gabbott Electrical Ltd,83932
Chorley Borough Council,http://statistics.data.gov.uk/id/local-authority/30UE,Business Support,1095,GROW - Commercial Services,Planned Maintenance,20006,Repairs Maintenance & Alts,5005,Planned Electrical Maintenance and Remedial Works @ Strawberry Fields,04/10/2023,0184270,574.70,Revenue,Walker Gabbott Electrical Ltd,83932
Chorley Borough Council,http://statistics.data.gov.uk/id/local-authority/30UE,Unapportionable Central OHeads,1009,GROW - Commercial Services,General Repairs - Reactive,20004,Repairs Maintenance & Alts,5005,Installation of replacement switchgear and distribution equipment at Chorley Market,04/10/2023,0184810,"15,131.30",Revenue,Walker Gabbott Electrical Ltd,83932
Chorley Borough Council,http://statistics.data.gov.uk/id/local-authority/30UE,Unapportionable Central OHeads,1009,GROW - Commercial Services,Planned Maintenance,20006,Repairs Maintenance & Alts,5005,Reactive Electrical Repair Works @ Community Centre`s,04/10/2023,0184825,697.28,Revenue,Walker Gabbott Electrical Ltd,83932
Chorley Borough Council,http://statistics.data.gov.uk/id/local-authority/30UE,Unapportionable Central OHeads,1009,GROW - Commercial Services,Planned Maintenance,20006,Repairs Maintenance & Alts,5005,Reactive Electrical Repair Works @ Community Centre`s,04/10/2023,0184826,697.28,Revenue,Walker Gabbott Electrical Ltd,83932
Chorley Borough Council,http://statistics.data.gov.uk/id/local-authority/30UE,Unapportionable Central OHeads,1009,GROW - Commercial Services,Planned Maintenance,20006,Repairs Maintenance & Alts,5005,Reactive Electrical Repair Works @ Community Centre`s,04/10/2023,0184827,697.28,Revenue,Walker Gabbott Electrical Ltd,83932
Chorley Borough Council,http://statistics.data.gov.uk/id/local-authority/30UE,Unapportionable Central OHeads,1009,GROW - Commercial Services,General Repairs - Reactive,20004,Repairs Maintenance & Alts,5005,Reactive Electrical Repair Works @ Community Centres,04/10/2023,0184828,754.78,Revenue,Walker Gabbott Electrical Ltd,83932
Chorley Borough Council,http://statistics.data.gov.uk/id/local-authority/30UE,Tourism,1039,GROW - Commercial Services,Supplies-Grounds Maintenance,40025,"Equipment, Furniture & Materia",5023,"Chorley Flower Show Fabrication and installation of temporary power pillar, installation, and removal of temporary supplies. Inst",04/10/2023,0184861,"2,108.90",Revenue,Walker Gabbott Electrical Ltd,83932
Chorley Borough Council,http://statistics.data.gov.uk/id/local-authority/30UE,Unapportionable Central OHeads,1009,GROW - Commercial Services,General Repairs - Reactive,20004,Repairs Maintenance & Alts,5005,Reactive Electrical Repair Works @ Town Hall,11/10/2023,0185084,"1,414.79",Revenue,Walker Gabbott Electrical Ltd,83932
Chorley Borough Council,http://statistics.data.gov.uk/id/local-authority/30UE,Business Support,1095,GROW - Commercial Services,General Repairs - Reactive,20004,Repairs Maintenance & Alts,5005,Reactive Electrical Repair Works @ Primrose Gardens,25/10/2023,0185854,"1,945.00",Revenue,Walker Gabbott Electrical Ltd,83932
Chorley Borough Council,http://statistics.data.gov.uk/id/local-authority/30UE,Unapportionable Central OHeads,1009,GROW - Commercial Services,General Repairs - Reactive,20004,Repairs Maintenance & Alts,5005,Reactive Electrical Repair Works @ Union Street,25/10/2023,0185970,"8,395.00",Revenue,Walker Gabbott Electrical Ltd,83932
Chorley Borough Council,http://statistics.data.gov.uk/id/local-authority/30UE,Central Support Services,1009,GROW - Commercial Services,Water - Unmetered Supply,20023,Water Services,5009,,04/10/2023,0185098,"1,531.62",Revenue,Water-plus,17926
Chorley Borough Council,http://statistics.data.gov.uk/id/local-authority/30UE,Business Support,1095,GROW - Commercial Services,Water - Metered Supplies,20022,Water Services,5009,"700 273 0728, 31 Jul 22 - 01 Mar 23",04/10/2023,0185288,591.95,Revenue,Water-plus,17926
Chorley Borough Council,http://statistics.data.gov.uk/id/local-authority/30UE,Central Support Services,1009,GROW - Commercial Services,Water - Unmetered Supply,20023,Water Services,5009,"600 187 5183, 15 Jan 20 - 08 Apr 20",04/10/2023,0185292,695.96,Revenue,Water-plus,17926
Chorley Borough Council,http://statistics.data.gov.uk/id/local-authority/30UE,Business Support,1095,GROW - Commercial Services,Water - Metered Supplies,20022,Water Services,5009,,11/10/2023,0185362,669.59,Revenue,Water-plus,17926
Chorley Borough Council,http://statistics.data.gov.uk/id/local-authority/30UE,Business Support,1095,GROW - Commercial Services,Electricity,20013,Energy Costs,5006,"700 343 0718, 24 Oct 22 - 12 Sep 23, Used Water & Drainage",11/10/2023,0185450,530.01,Revenue,Water-plus,17926
Chorley Borough Council,http://statistics.data.gov.uk/id/local-authority/30UE,Business Support,1095,GROW - Commercial Services,Electricity,20013,Energy Costs,5006,"700 342 7486, 24 Oct 22 - 12 Sep 23",11/10/2023,0185736,524.63,Revenue,Water-plus,17926
Chorley Borough Council,http://statistics.data.gov.uk/id/local-authority/30UE,Business Support,1095,GROW - Commercial Services,Water - Metered Supplies,20022,Water Services,5009,"700 325 0056, 24 Oct 22 - 01 Oct 23, Used Water & Drainage",18/10/2023,0185965,557.86,Revenue,Water-plus,17926
Chorley Borough Council,http://statistics.data.gov.uk/id/local-authority/30UE,Regulatory Services,1048,GROW - Commercial Services,Water - Metered Supplies,20022,Water Services,5009,"408 353 6947, 18 Jul 23 - 17 Oct 23",25/10/2023,0187503,"1,087.16",Revenue,WaterPlus 4083536947 Toilets Market Place Chorley,85561
Chorley Borough Council,http://statistics.data.gov.uk/id/local-authority/30UE,Unapportionable Central OHeads,1009,GROW - Commercial Services,Water - Metered Supplies,20022,Water Services,5009,"408 353 8012, 11 Aug 23 - 10 Sep 23",04/10/2023,0185090,618.24,Revenue,WaterPlus 4083538012 Destructor Stump Lane Chorley,85458
Chorley Borough Council,http://statistics.data.gov.uk/id/local-authority/30UE,Unapportionable Central OHeads,1009,GROW - Commercial Services,Water - Metered Supplies,20022,Water Services,5009,water charges,25/10/2023,0186006,598.18,Revenue,WaterPlus 4083538012 Destructor Stump Lane Chorley,85458
Chorley Borough Council,http://statistics.data.gov.uk/id/local-authority/30UE,Unapportionable Central OHeads,1009,GROW - Commercial Services,Water - Metered Supplies,20022,Water Services,5009,"408 588 4879, 13 Aug 23 - 12 Sep 23",04/10/2023,0185088,537.79,Revenue,WaterPlus 4085884879 Town Hall,84240
Chorley Borough Council,http://statistics.data.gov.uk/id/local-authority/30UE,Unapportionable Central OHeads,1009,GROW - Commercial Services,Water - Metered Supplies,20022,Water Services,5009,water charges,25/10/2023,0186005,522.70,Revenue,WaterPlus 4085884879 Town Hall,84240
Chorley Borough Council,http://statistics.data.gov.uk/id/local-authority/30UE,Democratic Represent and  Mgnt,1007,GROW - Commercial Services,Water - Metered Supplies,20022,Water Services,5009,Astley Coach House,04/10/2023,0184281,528.60,Revenue,WaterPlus 4159823953 Astley Coach House,85508
Chorley Borough Council,http://statistics.data.gov.uk/id/local-authority/30UE,Democratic Represent and  Mgnt,1007,GROW - Commercial Services,Water - Metered Supplies,20022,Water Services,5009,"415 982 3953, 12 Aug 23 - 11 Sep 23",04/10/2023,0185087,528.60,Revenue,WaterPlus 4159823953 Astley Coach House,85508
Chorley Borough Council,http://statistics.data.gov.uk/id/local-authority/30UE,Democratic Represent and  Mgnt,1007,GROW - Commercial Services,Water - Metered Supplies,20022,Water Services,5009,water charges,25/10/2023,0186004,511.97,Revenue,WaterPlus 4159823953 Astley Coach House,85508
Chorley Borough Council,http://statistics.data.gov.uk/id/local-authority/30UE,Homelessness,1075,GROW - Commercial Services,Water - Metered Supplies,20022,Water Services,5009,Cotswold House,18/10/2023,0185714,714.04,Revenue,WaterPlus 4160565113 Cotswold House,85562
Chorley Borough Council,http://statistics.data.gov.uk/id/local-authority/30UE,Culture & Heritage,1036,GROW - Commercial Services,Water - Metered Supplies,20022,Water Services,5009,Market Stall 1,18/10/2023,0181622,988.42,Revenue,WaterPlus 6000507873 Astley Hall,84178
Chorley Borough Council,http://statistics.data.gov.uk/id/local-authority/30UE,Business Support,1095,GROW - Commercial Services,Water - Metered Supplies,20022,Water Services,5009,"600 225 9172, 14 Aug 23 - 13 Sep 23",11/10/2023,0185363,"1,060.53",Revenue,WaterPlus 6002259172 The Strawberry Fields,86926
Chorley Borough Council,http://statistics.data.gov.uk/id/local-authority/30UE,Business Support,1095,GROW - Commercial Services,Stationery,40050,"Printing, Stationery & General",5026,"Per your quote 12951, Smart-Pad - Note A4 printed with Strawberry Fields logo x 2000 @ 0.79",25/10/2023,0186198,"1,580.00",Revenue,WeBrand4You,68716
Chorley Borough Council,http://statistics.data.gov.uk/id/local-authority/30UE,Business Support,1095,GROW - Commercial Services,Stationery,40050,"Printing, Stationery & General",5026,"Per your quote 12950, Contour ball point pens printed with Strawberry Fields logo x 2000 @ 0.37",25/10/2023,0187402,740.00,Revenue,WeBrand4You,68716
Chorley Borough Council,http://statistics.data.gov.uk/id/local-authority/30UE,Recognised Cap Grants & Conts,,PLAN - Planning & Development,Contributions Parish Councils,40144,Grants and Subscriptions,5031,CIL 1st april to 30th sept,18/10/2023,0185871,"6,042.70",Revenue,Whittle-le-Woods Parish Council,18602
Chorley Borough Council,http://statistics.data.gov.uk/id/local-authority/30UE,Culture & Heritage,1036,GOVN - Policy & Governance,Souvenirs,40033,"Equipment, Furniture & Materia",5023,"Product Name	Product No	Quantity 	Price per Unit	Price per line, **MULTI 3**BOUTIQUE GARDEN PASTEL POT WITH SLATE & CHALK STRAWBE",18/10/2023,0185329,601.88,Revenue,Widdop and Co,89419
Chorley Borough Council,http://statistics.data.gov.uk/id/local-authority/30UE,Homelessness,1075,EARL - Communities,Grants - Tenant Participation,40142,Grants and Subscriptions,5031,,18/10/2023,0185904,500.00,Revenue,William Quinn,85652
Chorley Borough Council,http://statistics.data.gov.uk/id/local-authority/30UE,Recognised Cap Grants & Conts,,PLAN - Planning & Development,Contributions Parish Councils,40144,Grants and Subscriptions,5031,CIL 1/04 - 30/09,18/10/2023,0185870,"9,347.93",Revenue,Withnell Parish Council,16211
Chorley Borough Council,http://statistics.data.gov.uk/id/local-authority/30UE,Development Control,1091,PLAN - Planning & Development,Professional Fees,40063,Services,5027,WSP (NAME REDACTED) Providing professional representation for a re-opened Planning Appeal Inquiry � Land adjacent to HMP Garth and ,11/10/2023,0184808,"1,015.00",Revenue,WSP UK Ltd,77416
Chorley Borough Council,http://statistics.data.gov.uk/id/local-authority/30UE,Development Control,1091,PLAN - Planning & Development,Professional Fees,40063,Services,5027,WSP (NAME REDACTED) Providing professional representation for a re-opened Planning Appeal Inquiry � Land adjacent to HMP Garth and ,11/10/2023,0185193,"3,233.00",Revenue,WSP UK Ltd,77416
Chorley Borough Council,http://statistics.data.gov.uk/id/local-authority/30UE,Culture & Heritage,1036,GOVN - Policy & Governance,Souvenirs,40033,"Equipment, Furniture & Materia",5023,"Yarto Order					, Product Name	 Product No.	Units	Unit Price	Cost/Line, 				, Duck Shakespeare	 12598	 12	 3.15	 37.80	, Duck C",25/10/2023,0185541,517.20,Revenue,Yarto Europe Limited,80961
